Body,Body name,Date,Transaction number,Amount,Non recoverable VAT included in amount,Supplier name,Supplier ID,Expense area,Fund type,Expense type,Category description
http://thanet.gov.uk/supplierspend,Thanet District Council,08/04/2015,382030,395,,A& C Pumps Ltd,ACP001,Operational Services,Revenue,"Repairs,  Alter & Mtce - Build",Building Construction Material
http://thanet.gov.uk/supplierspend,Thanet District Council,08/04/2015,382031,895,,A& C Pumps Ltd,ACP001,Operational Services,Revenue,"Repairs,  Alter & Mtce - Build",Building Construction Material
http://thanet.gov.uk/supplierspend,Thanet District Council,08/04/2015,382098,750,,Alex Hare Photography,HAR064,Community Services,Revenue,"Equip, Furniture And Materials",Arts And Leisure Services
http://thanet.gov.uk/supplierspend,Thanet District Council,08/04/2015,381947,240,,All Sign Solutions Ltd,ALL002,Corporate Resources and S151,Balance Sheet,Infrastructure,Building Construction Material
http://thanet.gov.uk/supplierspend,Thanet District Council,08/04/2015,381948,250,,All Sign Solutions Ltd,ALL002,Operational Services,Revenue,"Repairs,  Alter & Mtce - Build",Building Construction Material
http://thanet.gov.uk/supplierspend,Thanet District Council,08/04/2015,381949,471,,All Sign Solutions Ltd,ALL002,Community Services,Revenue,"Equip, Furniture And Materials",Building Construction Material
http://thanet.gov.uk/supplierspend,Thanet District Council,08/04/2015,381950,380,,All Sign Solutions Ltd,ALL002,Community Services,Revenue,Fixtures & Fittings,Building Construction Material
http://thanet.gov.uk/supplierspend,Thanet District Council,08/04/2015,381953,240,,All Sign Solutions Ltd,ALL002,Operational Services,Revenue,"Repairs,  Alter & Mtce - Build",Building Construction Material
http://thanet.gov.uk/supplierspend,Thanet District Council,08/04/2015,382036,626.45,,Allstar Business Solutions Ltd,ALL038,Operational Services,Revenue,Direct Transport Costs,Vehicle Management
http://thanet.gov.uk/supplierspend,Thanet District Council,08/04/2015,382102,570,,Amenity Horticultural Serv Ltd,AME001,Operational Services,Revenue,"Equip, Furniture And Materials",Horticultural
http://thanet.gov.uk/supplierspend,Thanet District Council,08/04/2015,382103,1134,,Amenity Horticultural Serv Ltd,AME001,Operational Services,Revenue,"Equip, Furniture And Materials",Horticultural
http://thanet.gov.uk/supplierspend,Thanet District Council,08/04/2015,381222,577.5,,Andy Morris,MOR028,Community Services,Revenue,Services,Arts And Leisure Services
http://thanet.gov.uk/supplierspend,Thanet District Council,08/04/2015,381901,1937,,Antidote Dp Limited,ANT004,Community Services,Revenue,"Print, Stat And Gen Off Exps",Facilities And Mangement Serv
http://thanet.gov.uk/supplierspend,Thanet District Council,08/04/2015,382165,287.91,,Ascendit Lifts Ltd,ASC001,Corporate Resources and S151,Balance Sheet,Capital Exp-Non Council Assets,Grants
http://thanet.gov.uk/supplierspend,Thanet District Council,08/04/2015,381776,765,,Aston Walker,AST008,Community Services,Revenue,Services,Cemetery And Crematorium
http://thanet.gov.uk/supplierspend,Thanet District Council,08/04/2015,381909,375,,Bda (Initiatives) Limited,BDA001,East Kent Shared Services,Revenue,Employee Related Schemes,Human Resources
http://thanet.gov.uk/supplierspend,Thanet District Council,08/04/2015,381906,324.46,,Bookpoint Limited,BOO003,Community Services,Revenue,"Equip, Furniture And Materials",Stationery
http://thanet.gov.uk/supplierspend,Thanet District Council,08/04/2015,382004,325,,Bradstowe Chartered Surveyors,BRA027,Community Services,Revenue,Services,Facilities And Mangement Serv
http://thanet.gov.uk/supplierspend,Thanet District Council,08/04/2015,381922,1270,,C E Shaw,SHA028,Community Services,Revenue,Services,Grants
http://thanet.gov.uk/supplierspend,Thanet District Council,08/04/2015,381619,6292.5,,Canterbury City Council,CAN004,Corporate Resources and S151,Balance Sheet,Infrastructure,Various Cats-Public Sector
http://thanet.gov.uk/supplierspend,Thanet District Council,08/04/2015,381620,12800,,Canterbury City Council,CAN004,Operational Services,Revenue,Services,Various Cats-Public Sector
http://thanet.gov.uk/supplierspend,Thanet District Council,08/04/2015,381984,1600,,Canterbury Scaffolding,CAN023,Corporate Resources and S151,Balance Sheet,Council Dwellings,Construction-Repair And Maint
http://thanet.gov.uk/supplierspend,Thanet District Council,08/04/2015,382443,1635.4,,Caxtons Commercial Ltd,CAX006,Community Services,Revenue,Services,Consultancy
http://thanet.gov.uk/supplierspend,Thanet District Council,08/04/2015,381898,6612.34,,Cfh Docmail Ltd,CFH001,East Kent Shared Services,Revenue,Communications & Computing,Facilities And Mangement Serv
http://thanet.gov.uk/supplierspend,Thanet District Council,08/04/2015,381910,20047.57,,Cfh Docmail Ltd,CFH001,East Kent Shared Services,Revenue,Communications & Computing,Facilities And Mangement Serv
http://thanet.gov.uk/supplierspend,Thanet District Council,08/04/2015,381923,9623.71,,Cfh Docmail Ltd,CFH001,East Kent Shared Services,Revenue,"Print, Stat And Gen Off Exps",Facilities And Mangement Serv
http://thanet.gov.uk/supplierspend,Thanet District Council,08/04/2015,381924,7397.04,,Cfh Docmail Ltd,CFH001,East Kent Shared Services,Revenue,"Print, Stat And Gen Off Exps",Facilities And Mangement Serv
http://thanet.gov.uk/supplierspend,Thanet District Council,08/04/2015,381925,16662.84,,Cfh Docmail Ltd,CFH001,East Kent Shared Services,Revenue,"Print, Stat And Gen Off Exps",Facilities And Mangement Serv
http://thanet.gov.uk/supplierspend,Thanet District Council,08/04/2015,381926,13732.02,,Cfh Docmail Ltd,CFH001,East Kent Shared Services,Revenue,Communications & Computing,Facilities And Mangement Serv
http://thanet.gov.uk/supplierspend,Thanet District Council,08/04/2015,382111,1454.25,,Cfh Docmail Ltd,CFH001,East Kent Shared Services,Revenue,Communications & Computing,Facilities And Mangement Serv
http://thanet.gov.uk/supplierspend,Thanet District Council,08/04/2015,381782,236.09,,Channel Commercials Plc,CCO001,Operational Services,Revenue,Direct Transport Costs,Vehicle Management
http://thanet.gov.uk/supplierspend,Thanet District Council,08/04/2015,381188,480,,Cieh,CIE001,Community Services,Revenue,Communications & Computing,Human Resources
http://thanet.gov.uk/supplierspend,Thanet District Council,08/04/2015,381615,208.69,,Civica Uk Ltd,CIV003,East Kent Shared Services,Revenue,Communications & Computing,ICT
http://thanet.gov.uk/supplierspend,Thanet District Council,08/04/2015,381523,286.21,,Computerland Uk Limited,COM045,East Kent Shared Services,Revenue,Communications & Computing,ICT
http://thanet.gov.uk/supplierspend,Thanet District Council,08/04/2015,381611,10831.3,,Consultcih Ltd,CON038,Community Services,Revenue,Services,Consultancy
http://thanet.gov.uk/supplierspend,Thanet District Council,08/04/2015,382129,2805.5,,Coombs (Canterbury) Ltd,COO033,Corporate Resources and S151,Balance Sheet,Other Land And Buildings-Hra,Construction-Repair And Maint
http://thanet.gov.uk/supplierspend,Thanet District Council,08/04/2015,382130,9759.97,,Coombs (Canterbury) Ltd,COO033,Corporate Resources and S151,Balance Sheet,Other Land And Buildings-Hra,Construction-Repair And Maint
http://thanet.gov.uk/supplierspend,Thanet District Council,08/04/2015,382132,2470,,Coombs (Canterbury) Ltd,COO033,Corporate Resources and S151,Balance Sheet,Other Land And Buildings-Hra,Construction-Repair And Maint
http://thanet.gov.uk/supplierspend,Thanet District Council,08/04/2015,382005,3551.5,,Data Integration Limited,DAT006,East Kent Shared Services,Revenue,Communications & Computing,ICT
http://thanet.gov.uk/supplierspend,Thanet District Council,08/04/2015,381778,275.93,,Dennis Eagle Ltd,DEN005,Operational Services,Revenue,Direct Transport Costs,Vehicle Management
http://thanet.gov.uk/supplierspend,Thanet District Council,08/04/2015,381255,2028.6,,District Surveyors Association Limited,DIS002,Community Services,Revenue,Grants & Subscriptions,Financial Services
http://thanet.gov.uk/supplierspend,Thanet District Council,08/04/2015,380893,308.58,,Dover Counselling Centre,DOV014,Corporate Resources and S151,Revenue,Employee Related Schemes,Special Community Care
http://thanet.gov.uk/supplierspend,Thanet District Council,08/04/2015,381237,11048.32,,Dover District Council,DOV001,Corporate Resources and S151,Revenue,Services,Various Cats-Public Sector
http://thanet.gov.uk/supplierspend,Thanet District Council,08/04/2015,381617,2662.5,,Dover District Council,DOV001,Operational Services,Revenue,Services,Various Cats-Public Sector
http://thanet.gov.uk/supplierspend,Thanet District Council,08/04/2015,381238,1100,,Dr Alexander Marshall,MAR100,Operational Services,Revenue,Services,Cemetery And Crematorium
http://thanet.gov.uk/supplierspend,Thanet District Council,08/04/2015,381398,1121.45,,E Saunders Margate Ltd,SAU001,Operational Services,Revenue,"Repairs,  Alter & Mtce - Build",Construction-Repair And Maint
http://thanet.gov.uk/supplierspend,Thanet District Council,08/04/2015,381945,1484.36,,E Saunders Margate Ltd,SAU001,Community Services,Revenue,"Repairs,  Alter & Mtce - Build",Construction-Repair And Maint
http://thanet.gov.uk/supplierspend,Thanet District Council,08/04/2015,381539,397.2,,Eagle Envelopes Ltd,EAG001,East Kent Shared Services,Revenue,"Print, Stat And Gen Off Exps",Stationery
http://thanet.gov.uk/supplierspend,Thanet District Council,08/04/2015,381798,432.1,,Electrical Lighting Solutions Ltd,ELE013,Operational Services,Revenue,"Repairs,  Alter & Mtce - Build",Building Construction Material
http://thanet.gov.uk/supplierspend,Thanet District Council,08/04/2015,381535,580,,Envirocure Ltd,ENV011,Community Services,Revenue,"Repairs,  Alter & Mtce - Build",Facilities And Mangement Serv
http://thanet.gov.uk/supplierspend,Thanet District Council,08/04/2015,381908,1710,,Fleet (Line Markers) Ltd,FLE008,Operational Services,Revenue,"Equip, Furniture And Materials",Horticultural
http://thanet.gov.uk/supplierspend,Thanet District Council,08/04/2015,381538,330,,Freeflow Limited,FRE010,Operational Services,Revenue,"Repairs,  Alter & Mtce - Build",Building Construction Material
http://thanet.gov.uk/supplierspend,Thanet District Council,08/04/2015,381524,1528,,Fuel Sure,FUE002,Operational Services,Revenue,"Repairs,  Alter & Mtce - Build",Construction-Repair And Maint
http://thanet.gov.uk/supplierspend,Thanet District Council,08/04/2015,381525,520,,Fuel Sure,FUE002,Operational Services,Revenue,"Equip, Furniture And Materials",Construction-Repair And Maint
http://thanet.gov.uk/supplierspend,Thanet District Council,08/04/2015,381796,1380,,Fuel Sure,FUE002,Operational Services,Revenue,"Repairs,  Alter & Mtce - Build",Construction-Repair And Maint
http://thanet.gov.uk/supplierspend,Thanet District Council,08/04/2015,382202,2500,,Gatenbysanderson Ltd,GAT002,Corporate Resources and S151,Revenue,Services,Human Resources
http://thanet.gov.uk/supplierspend,Thanet District Council,08/04/2015,382203,15802.2,,Gatenbysanderson Ltd,GAT002,Corporate Resources and S151,Revenue,Services,Human Resources
http://thanet.gov.uk/supplierspend,Thanet District Council,08/04/2015,381980,350,,George Mccabe,MCC001,Operational Services,Revenue,Cleaning & Domestic Supplies,Environmental Services
http://thanet.gov.uk/supplierspend,Thanet District Council,08/04/2015,382006,1190,,Goodwins,GOO001,Operational Services,Revenue,"Equip, Furniture And Materials",Horticultural
http://thanet.gov.uk/supplierspend,Thanet District Council,08/04/2015,381564,770,,Gulliver'S Truck Hire Limited,GUL001,Operational Services,Revenue,Cont Hire & Operating Lease,Vehicle Management
http://thanet.gov.uk/supplierspend,Thanet District Council,08/04/2015,381889,408.08,,H E Municipal Engineering Ltd,HEM003,Operational Services,Revenue,Direct Transport Costs,Vehicle Management
http://thanet.gov.uk/supplierspend,Thanet District Council,08/04/2015,382146,700,,H M Revenue & Customs,HMR004,Corporate Resources and S151,Balance Sheet,Council Dwellings,Government Agencies
http://thanet.gov.uk/supplierspend,Thanet District Council,08/04/2015,379740,5552.49,,Holbrook Revell Electrical Ltd,HOL015,Operational Services,Revenue,"Equip, Furniture And Materials",Building Construction Material
http://thanet.gov.uk/supplierspend,Thanet District Council,08/04/2015,379740,1938.66,,Holbrook Revell Electrical Ltd,HOL015,Operational Services,Revenue,"Repairs,  Alter & Mtce - Build",Building Construction Material
http://thanet.gov.uk/supplierspend,Thanet District Council,08/04/2015,382204,7403.32,,Holbrook Revell Electrical Ltd,HOL015,Operational Services,Revenue,"Equip, Furniture And Materials",Building Construction Material
http://thanet.gov.uk/supplierspend,Thanet District Council,08/04/2015,382204,2584.88,,Holbrook Revell Electrical Ltd,HOL015,Operational Services,Revenue,"Repairs,  Alter & Mtce - Build",Building Construction Material
http://thanet.gov.uk/supplierspend,Thanet District Council,08/04/2015,380847,1791.07,,Hr Go Recruitment Ltd,HRG002,Operational Services,Revenue,Agency Staff,Human Resources
http://thanet.gov.uk/supplierspend,Thanet District Council,08/04/2015,380850,8249.24,,Hr Go Recruitment Ltd,HRG002,Operational Services,Revenue,Agency Staff,Human Resources
http://thanet.gov.uk/supplierspend,Thanet District Council,08/04/2015,381473,8520.81,,Hr Go Recruitment Ltd,HRG002,Operational Services,Revenue,Agency Staff,Human Resources
http://thanet.gov.uk/supplierspend,Thanet District Council,08/04/2015,381992,845.99,,Hr Go Recruitment Ltd,HRG002,Operational Services,Revenue,Agency Staff,Human Resources
http://thanet.gov.uk/supplierspend,Thanet District Council,08/04/2015,381993,394.32,,Hr Go Recruitment Ltd,HRG002,Operational Services,Revenue,Agency Staff,Human Resources
http://thanet.gov.uk/supplierspend,Thanet District Council,08/04/2015,381994,9846.35,,Hr Go Recruitment Ltd,HRG002,Operational Services,Revenue,Agency Staff,Human Resources
http://thanet.gov.uk/supplierspend,Thanet District Council,08/04/2015,381995,1497.46,,Hr Go Recruitment Ltd,HRG002,Operational Services,Revenue,Agency Staff,Human Resources
http://thanet.gov.uk/supplierspend,Thanet District Council,08/04/2015,381996,239.2,,Hr Go Recruitment Ltd,HRG002,Community Services,Revenue,Agency Staff,Human Resources
http://thanet.gov.uk/supplierspend,Thanet District Council,08/04/2015,381997,4313.76,,Hr Go Recruitment Ltd,HRG002,Operational Services,Revenue,Agency Staff,Human Resources
http://thanet.gov.uk/supplierspend,Thanet District Council,08/04/2015,381998,386.75,,Hr Go Recruitment Ltd,HRG002,Community Services,Revenue,Agency Staff,Human Resources
http://thanet.gov.uk/supplierspend,Thanet District Council,08/04/2015,382002,12238.88,,Idox Software  Limited,IDO001,Corporate Resources and S151,Revenue,"Print, Stat And Gen Off Exps",ICT
http://thanet.gov.uk/supplierspend,Thanet District Council,08/04/2015,381900,508.46,,Kelway Ltd,KEL003,East Kent Shared Services,Revenue,Communications & Computing,ICT
http://thanet.gov.uk/supplierspend,Thanet District Council,08/04/2015,381914,5586,,Kent County Council,KCC002,Operational Services,Revenue,"Repairs,  Alter & Mtce - Build",Various Cats-Public Sector
http://thanet.gov.uk/supplierspend,Thanet District Council,08/04/2015,381915,1995,,Kent County Council,KCC002,Operational Services,Revenue,"Repairs,  Alter & Mtce - Build",Various Cats-Public Sector
http://thanet.gov.uk/supplierspend,Thanet District Council,08/04/2015,381916,3000,,Kent County Council,KCC002,Community Services,Revenue,Grants & Subscriptions,Various Cats-Public Sector
http://thanet.gov.uk/supplierspend,Thanet District Council,08/04/2015,381917,4053,,Kent County Council,KCC002,Community Services,Revenue,Services,Various Cats-Public Sector
http://thanet.gov.uk/supplierspend,Thanet District Council,08/04/2015,382195,400,,Kent County Council,KCC002,Corporate Resources and S151,Revenue,Services,Various Cats-Public Sector
http://thanet.gov.uk/supplierspend,Thanet District Council,08/04/2015,301568,562.5,,Kent County Council (Kcs),KCC003,Community Services,Revenue,Energy Costs,Facilities And Mangement Serv
http://thanet.gov.uk/supplierspend,Thanet District Council,08/04/2015,381913,-313.12,,Kent County Council (Kcs),KCC003,Community Services,Revenue,Energy Costs,Facilities And Mangement Serv
http://thanet.gov.uk/supplierspend,Thanet District Council,08/04/2015,380746,8417.5,,Knaves Ash Plants,KNA001,Operational Services,Revenue,"Equip, Furniture And Materials",Horticultural
http://thanet.gov.uk/supplierspend,Thanet District Council,08/04/2015,381795,692.58,,Landscape Supply Company,LAN014,Operational Services,Revenue,"Equip, Furniture And Materials",Horticultural
http://thanet.gov.uk/supplierspend,Thanet District Council,08/04/2015,381878,340,,Leafleteers Ltd,LEA023,Corporate Resources and S151,Revenue,Miscellaneous Expenses,Facilities And Mangement Serv
http://thanet.gov.uk/supplierspend,Thanet District Council,08/04/2015,381393,579.08,,Lister Wilder Limited,LIS002,Operational Services,Revenue,"Equip, Furniture And Materials",Horticultural
http://thanet.gov.uk/supplierspend,Thanet District Council,08/04/2015,381939,913.85,,Lister Wilder Limited,LIS002,Operational Services,Revenue,"Equip, Furniture And Materials",Horticultural
http://thanet.gov.uk/supplierspend,Thanet District Council,08/04/2015,381779,399.4,,Lyreco Uk Limited,LYR001,Community Services,Revenue,"Print, Stat And Gen Off Exps",Stationery
http://thanet.gov.uk/supplierspend,Thanet District Council,08/04/2015,381929,399.4,,Lyreco Uk Limited,LYR001,Community Services,Revenue,"Print, Stat And Gen Off Exps",Stationery
http://thanet.gov.uk/supplierspend,Thanet District Council,08/04/2015,381921,1710,,M & P Marine Services,MPM001,Operational Services,Revenue,"Repairs,  Alter & Mtce - Build",Maritime Services
http://thanet.gov.uk/supplierspend,Thanet District Council,08/04/2015,381938,400,,Margate Theatre Organ Club,MTH001,Community Services,Revenue,"Equip, Furniture And Materials",Arts And Leisure Services
http://thanet.gov.uk/supplierspend,Thanet District Council,08/04/2015,382192,1305.59,,Mears Ltd,MEA003,Community Services,Revenue,"Repairs,  Alter & Mtce - Build",Construction-Repair And Maint
http://thanet.gov.uk/supplierspend,Thanet District Council,08/04/2015,382194,284.62,,Mears Ltd,MEA003,Corporate Resources and S151,Revenue,"Print, Stat And Gen Off Exps",Construction-Repair And Maint
http://thanet.gov.uk/supplierspend,Thanet District Council,08/04/2015,382208,98798.67,,Mears Ltd,MEA003,Community Services,Revenue,"Repairs,  Alter & Mtce - Build",Construction-Repair And Maint
http://thanet.gov.uk/supplierspend,Thanet District Council,08/04/2015,382214,1923.5,,Mears Ltd,MEA003,Community Services,Revenue,"Repairs,  Alter & Mtce - Build",Construction-Repair And Maint
http://thanet.gov.uk/supplierspend,Thanet District Council,08/04/2015,382215,1859.71,,Mears Ltd,MEA003,Community Services,Revenue,"Repairs,  Alter & Mtce - Build",Construction-Repair And Maint
http://thanet.gov.uk/supplierspend,Thanet District Council,08/04/2015,382033,3000,,Meridian Membranes,MER018,Community Services,Revenue,Grants & Subscriptions,Building Construction Material
http://thanet.gov.uk/supplierspend,Thanet District Council,08/04/2015,382033,6000,,Meridian Membranes,MER018,Operational Services,Revenue,"Repairs,  Alter & Mtce - Build",Building Construction Material
http://thanet.gov.uk/supplierspend,Thanet District Council,08/04/2015,381786,1728,,Michael Page Int Recruitment Ltd,PAG008,Corporate Resources and S151,Revenue,Services,Human Resources
http://thanet.gov.uk/supplierspend,Thanet District Council,08/04/2015,382009,4083.75,,Michael Page Int Recruitment Ltd,PAG008,Corporate Resources and S151,Revenue,Services,Human Resources
http://thanet.gov.uk/supplierspend,Thanet District Council,08/04/2015,382152,1344,,Michael Page Int Recruitment Ltd,PAG008,Corporate Resources and S151,Revenue,Services,Human Resources
http://thanet.gov.uk/supplierspend,Thanet District Council,08/04/2015,382269,3267,,Michael Page Int Recruitment Ltd,PAG008,Corporate Resources and S151,Revenue,Services,Human Resources
http://thanet.gov.uk/supplierspend,Thanet District Council,08/04/2015,381272,415.8,,Morgan Jones Ltd,MOR001,Community Services,Revenue,Services,Human Resources
http://thanet.gov.uk/supplierspend,Thanet District Council,08/04/2015,381981,699.3,,Morgan Jones Ltd,MOR001,Community Services,Revenue,Services,Human Resources
http://thanet.gov.uk/supplierspend,Thanet District Council,08/04/2015,382050,615,,Mrs K Hooper,HOO004,Chief Executive,Revenue,Services,Consultancy
http://thanet.gov.uk/supplierspend,Thanet District Council,08/04/2015,381565,710,,Nagels Uk Ltd,NAG001,Operational Services,Revenue,"Print, Stat And Gen Off Exps",Facilities And Mangement Serv
http://thanet.gov.uk/supplierspend,Thanet District Council,08/04/2015,382255,3880.07,,National Express Ltd,NAT010,Community Services,Revenue,Services,Agency Payments
http://thanet.gov.uk/supplierspend,Thanet District Council,08/04/2015,381571,751.23,,Npower Direct Limited,NPO003,Community Services,Revenue,Energy Costs,Utilities
http://thanet.gov.uk/supplierspend,Thanet District Council,08/04/2015,381820,344.98,,O2 (Uk) Ltd,O2U001,Operational Services,Revenue,Communications & Computing,ICT
http://thanet.gov.uk/supplierspend,Thanet District Council,08/04/2015,381199,393.38,,Ocs Group Uk Ltd T/A Fountains,OCS005,Community Services,Revenue,Cleaning & Domestic Supplies,Cleaning And Janitorial
http://thanet.gov.uk/supplierspend,Thanet District Council,08/04/2015,381461,297.64,,Orbis Protect Limited,ORB009,Community Services,Revenue,Services,Facilities And Mangement Serv
http://thanet.gov.uk/supplierspend,Thanet District Council,08/04/2015,381517,261.2,,Phoenix Software Ltd,PHO002,Community Services,Revenue,Communications & Computing,ICT
http://thanet.gov.uk/supplierspend,Thanet District Council,08/04/2015,381418,5951.45,,Potter Raper Partnership,POT006,Corporate Resources and S151,Balance Sheet,Council Dwellings,Housing Management
http://thanet.gov.uk/supplierspend,Thanet District Council,08/04/2015,381419,5661.19,,Potter Raper Partnership,POT006,Corporate Resources and S151,Balance Sheet,Council Dwellings,Housing Management
http://thanet.gov.uk/supplierspend,Thanet District Council,08/04/2015,381989,933.66,,Probrand Ltd,PRO012,Corporate Resources and S151,Revenue,Communications & Computing,ICT
http://thanet.gov.uk/supplierspend,Thanet District Council,08/04/2015,381990,7324.24,,Probrand Ltd,PRO012,Corporate Resources and S151,Revenue,Communications & Computing,ICT
http://thanet.gov.uk/supplierspend,Thanet District Council,08/04/2015,381987,756,,Profile Security Services Limited,PRO018,Operational Services,Revenue,Services,Facilities And Mangement Serv
http://thanet.gov.uk/supplierspend,Thanet District Council,08/04/2015,382117,1204.5,,Puls Global Ltd,PUL006,Operational Services,Revenue,"Equip, Furniture And Materials",Facilities And Mangement Serv
http://thanet.gov.uk/supplierspend,Thanet District Council,08/04/2015,381988,577.5,,R Cannon,CAN007,Operational Services,Revenue,Services,Maritime Services
http://thanet.gov.uk/supplierspend,Thanet District Council,08/04/2015,381612,400,,Ramsgate Town Council,RAM031,Operational Services,Revenue,"Repairs,  Alter & Mtce - Build",Various Cats-Public Sector
http://thanet.gov.uk/supplierspend,Thanet District Council,08/04/2015,382280,3332.2,,Rigby Taylor Ltd,RIG002,Operational Services,Revenue,"Equip, Furniture And Materials",Horticultural
http://thanet.gov.uk/supplierspend,Thanet District Council,08/04/2015,381006,1750.42,,Royal Mail,ROY004,Community Services,Revenue,Communications & Computing,Mail Services
http://thanet.gov.uk/supplierspend,Thanet District Council,08/04/2015,381774,220.69,,Royal Mail,ROY004,Corporate Resources and S151,Revenue,Communications & Computing,Mail Services
http://thanet.gov.uk/supplierspend,Thanet District Council,08/04/2015,381896,4428.78,,Royal Mail,ROY004,Community Services,Revenue,Communications & Computing,Mail Services
http://thanet.gov.uk/supplierspend,Thanet District Council,08/04/2015,381944,2000,,Russell Leisure Limited,RUS010,Operational Services,Revenue,"Repairs,  Alter & Mtce - Build",Sports Playground Equipment
http://thanet.gov.uk/supplierspend,Thanet District Council,08/04/2015,382445,737.1,,S M Hennessy,HEN010,Community Services,Revenue,Grants & Subscriptions,Grants
http://thanet.gov.uk/supplierspend,Thanet District Council,08/04/2015,381465,910,,Sellick Partnership Ltd,SEL011,Corporate Resources and S151,Revenue,Agency Staff,Human Resources
http://thanet.gov.uk/supplierspend,Thanet District Council,08/04/2015,381800,1814.85,,Sellick Partnership Ltd,SEL011,Corporate Resources and S151,Revenue,Agency Staff,Human Resources
http://thanet.gov.uk/supplierspend,Thanet District Council,08/04/2015,381905,2262,,Sellick Partnership Ltd,SEL011,Corporate Resources and S151,Revenue,Services,Human Resources
http://thanet.gov.uk/supplierspend,Thanet District Council,08/04/2015,381927,900,,Sellick Partnership Ltd,SEL011,Community Services,Revenue,Services,Human Resources
http://thanet.gov.uk/supplierspend,Thanet District Council,08/04/2015,382064,824.95,,Sellick Partnership Ltd,SEL011,Corporate Resources and S151,Revenue,Agency Staff,Human Resources
http://thanet.gov.uk/supplierspend,Thanet District Council,08/04/2015,382089,1994.85,,Sellick Partnership Ltd,SEL011,Corporate Resources and S151,Revenue,Agency Staff,Human Resources
http://thanet.gov.uk/supplierspend,Thanet District Council,08/04/2015,381808,1029,,Shaw Electrical,SHA005,Operational Services,Revenue,"Repairs,  Alter & Mtce - Build",Building Construction Material
http://thanet.gov.uk/supplierspend,Thanet District Council,08/04/2015,381890,15753,,Siemens Plc,SIE002,Operational Services,Revenue,"Equip, Furniture And Materials",Facilities And Mangement Serv
http://thanet.gov.uk/supplierspend,Thanet District Council,08/04/2015,381891,15753,,Siemens Plc,SIE002,Operational Services,Revenue,"Equip, Furniture And Materials",Facilities And Mangement Serv
http://thanet.gov.uk/supplierspend,Thanet District Council,08/04/2015,381550,459.38,,Silgo Lubricants Ltd,SIL007,Operational Services,Revenue,Direct Transport Costs,Vehicle Management
http://thanet.gov.uk/supplierspend,Thanet District Council,08/04/2015,381552,1500,,Sjr Pm Solutions Limited,SJR001,East Kent Shared Services,Revenue,Services,ICT
http://thanet.gov.uk/supplierspend,Thanet District Council,08/04/2015,379397,478.1,,Southern Electric,SEL007,Community Services,Revenue,Energy Costs,Utilities
http://thanet.gov.uk/supplierspend,Thanet District Council,08/04/2015,379487,931.57,,Southern Electric,SEL007,Operational Services,Revenue,Energy Costs,Utilities
http://thanet.gov.uk/supplierspend,Thanet District Council,08/04/2015,381558,-931.57,,Southern Electric,SEL007,Operational Services,Revenue,Energy Costs,Utilities
http://thanet.gov.uk/supplierspend,Thanet District Council,08/04/2015,381559,940.77,,Southern Electric,SEL007,Operational Services,Revenue,Energy Costs,Utilities
http://thanet.gov.uk/supplierspend,Thanet District Council,08/04/2015,382107,766.39,,Spaldings  Ltd,SPA006,Operational Services,Revenue,"Equip, Furniture And Materials",Horticultural
http://thanet.gov.uk/supplierspend,Thanet District Council,08/04/2015,381516,615.6,,Sparshatts Of Kent Ltd,SPA008,Operational Services,Revenue,Direct Transport Costs,Vehicle Management
http://thanet.gov.uk/supplierspend,Thanet District Council,08/04/2015,382121,555,,St Lawrence College Enterprises Ltd,STL008,Corporate Resources and S151,Revenue,Rents,Arts And Leisure Services
http://thanet.gov.uk/supplierspend,Thanet District Council,08/04/2015,381799,670,,Stallion Plant Services Ltd,STA056,Operational Services,Revenue,"Equip, Furniture And Materials",Vehicle Management
http://thanet.gov.uk/supplierspend,Thanet District Council,08/04/2015,381897,7296.48,,Straight Manufacturing Limited,STR038,Corporate Resources and S151,Balance Sheet,Plant And Equipment,Environmental Services
http://thanet.gov.uk/supplierspend,Thanet District Council,08/04/2015,381911,14592.96,,Straight Manufacturing Limited,STR038,Corporate Resources and S151,Balance Sheet,Plant And Equipment,Environmental Services
http://thanet.gov.uk/supplierspend,Thanet District Council,08/04/2015,381790,470,,Survey And Test,SUR015,Community Services,Revenue,Services,Utilities
http://thanet.gov.uk/supplierspend,Thanet District Council,08/04/2015,381298,1546.7,,Swale Heating Ltd,SWA006,Corporate Resources and S151,Balance Sheet,Repairs And Mtce Holding A/C,Building Construction Material
http://thanet.gov.uk/supplierspend,Thanet District Council,08/04/2015,381299,1813.02,,Swale Heating Ltd,SWA006,Corporate Resources and S151,Balance Sheet,Repairs And Mtce Holding A/C,Building Construction Material
http://thanet.gov.uk/supplierspend,Thanet District Council,08/04/2015,381300,1417.05,,Swale Heating Ltd,SWA006,Corporate Resources and S151,Balance Sheet,Repairs And Mtce Holding A/C,Building Construction Material
http://thanet.gov.uk/supplierspend,Thanet District Council,08/04/2015,381301,1305.5,,Swale Heating Ltd,SWA006,Corporate Resources and S151,Balance Sheet,Repairs And Mtce Holding A/C,Building Construction Material
http://thanet.gov.uk/supplierspend,Thanet District Council,08/04/2015,381371,1747.7,,Swale Heating Ltd,SWA006,Corporate Resources and S151,Balance Sheet,Repairs And Mtce Holding A/C,Building Construction Material
http://thanet.gov.uk/supplierspend,Thanet District Council,08/04/2015,381372,1546.7,,Swale Heating Ltd,SWA006,Corporate Resources and S151,Balance Sheet,Repairs And Mtce Holding A/C,Building Construction Material
http://thanet.gov.uk/supplierspend,Thanet District Council,08/04/2015,381373,1410,,Swale Heating Ltd,SWA006,Corporate Resources and S151,Balance Sheet,Repairs And Mtce Holding A/C,Building Construction Material
http://thanet.gov.uk/supplierspend,Thanet District Council,08/04/2015,381804,5070,,Thanet Countryside Trust,TCO002,Community Services,Revenue,Grants & Subscriptions,Various Categories
http://thanet.gov.uk/supplierspend,Thanet District Council,08/04/2015,381544,727.5,,Thanet Waste Services Ltd,TWA001,Operational Services,Revenue,Private Contractors,Environmental Services
http://thanet.gov.uk/supplierspend,Thanet District Council,08/04/2015,380900,1729.14,,The Glenwood Hotel,GLE007,Community Services,Revenue,Services,Housing Management
http://thanet.gov.uk/supplierspend,Thanet District Council,08/04/2015,381150,979.15,,The Glenwood Hotel,GLE007,Community Services,Revenue,Services,Housing Management
http://thanet.gov.uk/supplierspend,Thanet District Council,08/04/2015,381151,2624.98,,The Glenwood Hotel,GLE007,Community Services,Revenue,Services,Housing Management
http://thanet.gov.uk/supplierspend,Thanet District Council,08/04/2015,381152,916.65,,The Glenwood Hotel,GLE007,Community Services,Revenue,Services,Housing Management
http://thanet.gov.uk/supplierspend,Thanet District Council,08/04/2015,381772,2312.47,,The Glenwood Hotel,GLE007,Community Services,Revenue,Services,Housing Management
http://thanet.gov.uk/supplierspend,Thanet District Council,08/04/2015,381773,749.98,,The Glenwood Hotel,GLE007,Community Services,Revenue,Services,Housing Management
http://thanet.gov.uk/supplierspend,Thanet District Council,08/04/2015,381999,295.96,,The Grand Garage,GRA016,Operational Services,Revenue,Direct Transport Costs,Vehicle Management
http://thanet.gov.uk/supplierspend,Thanet District Council,08/04/2015,381811,1050,,Tlm Media Ltd,TLM001,Community Services,Revenue,Miscellaneous Expenses,Arts And Leisure Services
http://thanet.gov.uk/supplierspend,Thanet District Council,08/04/2015,381791,3675,,Toplevel Computing Ltd,TOP007,Corporate Resources and S151,Revenue,Communications & Computing,ICT
http://thanet.gov.uk/supplierspend,Thanet District Council,08/04/2015,381580,550,,Total Sports Coaching,TOT014,Community Services,Revenue,Services,Arts And Leisure Services
http://thanet.gov.uk/supplierspend,Thanet District Council,08/04/2015,381614,7950.64,,Trinity House,TRI002,Operational Services,Revenue,"Equip, Furniture And Materials",Maritime Services
http://thanet.gov.uk/supplierspend,Thanet District Council,08/04/2015,380901,6113.95,,Trowers & Hamlins,TRO001,Corporate Resources and S151,Balance Sheet,Other Land And Buildings-Hra,Legal Services
http://thanet.gov.uk/supplierspend,Thanet District Council,08/04/2015,382170,500,,Turner Contemporary,TUR016,Community Services,Revenue,Grants & Subscriptions,Grants
http://thanet.gov.uk/supplierspend,Thanet District Council,08/04/2015,380813,1979.82,,Veolia Es (Uk) Ltd,VEO001,Operational Services,Revenue,Cleaning & Domestic Supplies,Environmental Services
http://thanet.gov.uk/supplierspend,Thanet District Council,08/04/2015,382198,-242.01,,Veolia Es (Uk) Ltd,VEO001,Operational Services,Revenue,Cleaning & Domestic Supplies,Environmental Services
http://thanet.gov.uk/supplierspend,Thanet District Council,08/04/2015,380422,244.8,,Viridor Waste Management Ltd,VIR003,Community Services,Revenue,Private Contractors,Environmental Services
http://thanet.gov.uk/supplierspend,Thanet District Council,08/04/2015,382164,12.24,,Viridor Waste Management Ltd,VIR003,Community Services,Revenue,Private Contractors,Environmental Services
http://thanet.gov.uk/supplierspend,Thanet District Council,08/04/2015,381568,1000,,Visit Kent Ltd,VIS005,Community Services,Revenue,Grants & Subscriptions,Arts And Leisure Services
http://thanet.gov.uk/supplierspend,Thanet District Council,08/04/2015,381378,275.4,,Wasteparts Uk Ltd,WAS006,Operational Services,Revenue,Direct Transport Costs,Vehicle Management
http://thanet.gov.uk/supplierspend,Thanet District Council,08/04/2015,381245,228,,Watling Tyre Service Ltd,WAT003,Operational Services,Revenue,"Equip, Furniture And Materials",Vehicle Management
http://thanet.gov.uk/supplierspend,Thanet District Council,08/04/2015,381797,380,,Weather2 Limited,WEA008,Operational Services,Revenue,Communications & Computing,Environmental Services
http://thanet.gov.uk/supplierspend,Thanet District Council,08/04/2015,381985,3000,,Webaspx Limited,WEB016,Operational Services,Revenue,Services,ICT
http://thanet.gov.uk/supplierspend,Thanet District Council,08/04/2015,381986,4700,,Webaspx Limited,WEB016,Operational Services,Revenue,Communications & Computing,ICT
http://thanet.gov.uk/supplierspend,Thanet District Council,08/04/2015,380991,2370.56,,Your Leisure Kent Limited,YOU016,Community Services,Revenue,"Equip, Furniture And Materials",Arts And Leisure Services
http://thanet.gov.uk/supplierspend,Thanet District Council,08/04/2015,381872,1818,,Your Leisure Kent Limited,YOU016,Community Services,Revenue,Rents,Arts And Leisure Services
http://thanet.gov.uk/supplierspend,Thanet District Council,08/04/2015,382135,428.83,,Zen Internet Ltd,ZEN001,East Kent Shared Services,Revenue,Communications & Computing,ICT
http://thanet.gov.uk/supplierspend,Thanet District Council,09/04/2015,382372,750.33,,Allstar Business Solutions Ltd,ALL038,Operational Services,Revenue,Direct Transport Costs,Vehicle Management
http://thanet.gov.uk/supplierspend,Thanet District Council,09/04/2015,382003,11986.36,,Ass Of Electoral Administrators,AEA001,Corporate Resources and S151,Revenue,Services,Human Resources
http://thanet.gov.uk/supplierspend,Thanet District Council,09/04/2015,382381,325,,Bradstowe Chartered Surveyors,BRA027,Community Services,Revenue,Services,Facilities And Mangement Serv
http://thanet.gov.uk/supplierspend,Thanet District Council,09/04/2015,382028,4125,,Burgess Marine Ltd,BUR017,Operational Services,Revenue,"Repairs,  Alter & Mtce - Build",Maritime Services
http://thanet.gov.uk/supplierspend,Thanet District Council,09/04/2015,382288,750,,Cieh,CIE001,Community Services,Revenue,Miscellaneous Expenses,Human Resources
http://thanet.gov.uk/supplierspend,Thanet District Council,09/04/2015,382328,1872,,Cipfa Business Ltd,CIP008,Chief Executive,Revenue,"Print, Stat And Gen Off Exps",Financial Services
http://thanet.gov.uk/supplierspend,Thanet District Council,09/04/2015,382328,2808,,Cipfa Business Ltd,CIP008,Corporate Resources and S151,Revenue,"Print, Stat And Gen Off Exps",Financial Services
http://thanet.gov.uk/supplierspend,Thanet District Council,09/04/2015,382654,1000,,Cliftonville Partnership,CLI019,Community Services,Revenue,Grants & Subscriptions,Grants
http://thanet.gov.uk/supplierspend,Thanet District Council,09/04/2015,382374,298.24,,Cobalt Telephone Technologies Ltd,COB002,Operational Services,Revenue,Services,ICT
http://thanet.gov.uk/supplierspend,Thanet District Council,09/04/2015,382271,626.4,,Computerland Uk Limited,COM045,East Kent Shared Services,Revenue,Communications & Computing,ICT
http://thanet.gov.uk/supplierspend,Thanet District Council,09/04/2015,382020,114367.36,,Dover District Council,DOV001,Corporate Resources and S151,Revenue,Services,Various Cats-Public Sector
http://thanet.gov.uk/supplierspend,Thanet District Council,09/04/2015,382021,25448.5,,Dover District Council,DOV001,Corporate Resources and S151,Revenue,Services,Various Cats-Public Sector
http://thanet.gov.uk/supplierspend,Thanet District Council,09/04/2015,382380,1650,,Dover District Council,DOV001,Corporate Resources and S151,Revenue,Services,Various Cats-Public Sector
http://thanet.gov.uk/supplierspend,Thanet District Council,09/04/2015,382136,601.51,,E Saunders Margate Ltd,SAU001,Community Services,Revenue,"Repairs,  Alter & Mtce - Build",Construction-Repair And Maint
http://thanet.gov.uk/supplierspend,Thanet District Council,09/04/2015,382137,636.58,,E Saunders Margate Ltd,SAU001,Community Services,Revenue,"Repairs,  Alter & Mtce - Build",Construction-Repair And Maint
http://thanet.gov.uk/supplierspend,Thanet District Council,09/04/2015,382140,239.06,,E Saunders Margate Ltd,SAU001,Community Services,Revenue,"Repairs,  Alter & Mtce - Build",Construction-Repair And Maint
http://thanet.gov.uk/supplierspend,Thanet District Council,09/04/2015,382274,394,,Estuary Services Ltd,EST002,Operational Services,Revenue,Cont Hire & Operating Lease,Maritime Services
http://thanet.gov.uk/supplierspend,Thanet District Council,09/04/2015,382145,21874,,Grant Thornton Uk Llp,GRA048,Corporate Resources and S151,Revenue,Services,Financial Services
http://thanet.gov.uk/supplierspend,Thanet District Council,09/04/2015,382656,1040,,H M Revenue & Customs,HMR004,Corporate Resources and S151,Balance Sheet,Council Dwellings,Government Agencies
http://thanet.gov.uk/supplierspend,Thanet District Council,09/04/2015,382645,425,,Harraway Tree Services,HAR043,Operational Services,Revenue,Grounds Mtce Costs,Horticultural
http://thanet.gov.uk/supplierspend,Thanet District Council,09/04/2015,358137,2817.75,,Holbrook Revell Electrical Ltd,HOL015,Operational Services,Revenue,"Repairs,  Alter & Mtce - Build",Building Construction Material
http://thanet.gov.uk/supplierspend,Thanet District Council,09/04/2015,382262,386.75,,Hr Go Recruitment Ltd,HRG002,Community Services,Revenue,Agency Staff,Human Resources
http://thanet.gov.uk/supplierspend,Thanet District Council,09/04/2015,382150,3550,,Jump It Recruitment Solutions Ltd,JUM001,East Kent Shared Services,Revenue,Agency Staff,Human Resources
http://thanet.gov.uk/supplierspend,Thanet District Council,09/04/2015,382013,400.17,,Kent County Council (Kcs),KCC003,Community Services,Revenue,"Equip, Furniture And Materials",Facilities And Mangement Serv
http://thanet.gov.uk/supplierspend,Thanet District Council,09/04/2015,382367,400,,Krw Risk Management Solutions Ltd,KRW001,Operational Services,Revenue,Training,Human Resources
http://thanet.gov.uk/supplierspend,Thanet District Council,09/04/2015,382282,480.95,,Lexisnexis Uk,LEX002,Corporate Resources and S151,Revenue,"Print, Stat And Gen Off Exps",Human Resources
http://thanet.gov.uk/supplierspend,Thanet District Council,09/04/2015,382284,1823,,Lexisnexis Uk,LEX002,Corporate Resources and S151,Revenue,"Print, Stat And Gen Off Exps",Human Resources
http://thanet.gov.uk/supplierspend,Thanet District Council,09/04/2015,382285,2751,,Lexisnexis Uk,LEX002,Corporate Resources and S151,Revenue,"Print, Stat And Gen Off Exps",Human Resources
http://thanet.gov.uk/supplierspend,Thanet District Council,09/04/2015,382017,250,,Lister Wilder Limited,LIS002,Operational Services,Revenue,"Equip, Furniture And Materials",Horticultural
http://thanet.gov.uk/supplierspend,Thanet District Council,09/04/2015,382082,1450,,Maxwells Grounds Maintenance Ltd,MAX002,Operational Services,Revenue,"Repairs,  Alter & Mtce - Build",Construction-Repair And Maint
http://thanet.gov.uk/supplierspend,Thanet District Council,09/04/2015,382216,279.83,,Mears Ltd,MEA003,Community Services,Revenue,"Repairs,  Alter & Mtce - Build",Construction-Repair And Maint
http://thanet.gov.uk/supplierspend,Thanet District Council,09/04/2015,382216,882.26,,Mears Ltd,MEA003,Operational Services,Revenue,"Repairs,  Alter & Mtce - Build",Construction-Repair And Maint
http://thanet.gov.uk/supplierspend,Thanet District Council,09/04/2015,382663,67.24,,Mears Ltd,MEA003,Community Services,Revenue,"Repairs,  Alter & Mtce - Build",Construction-Repair And Maint
http://thanet.gov.uk/supplierspend,Thanet District Council,09/04/2015,382663,127.09,,Mears Ltd,MEA003,Community Services,Revenue,"Repairs,  Alter & Mtce - Build",Construction-Repair And Maint
http://thanet.gov.uk/supplierspend,Thanet District Council,09/04/2015,382110,3000,,Medway Council,MED003,Community Services,Revenue,"Print, Stat And Gen Off Exps",Various Cats-Public Sector
http://thanet.gov.uk/supplierspend,Thanet District Council,09/04/2015,382354,924,,Michael Page Int Recruitment Ltd,PAG008,Corporate Resources and S151,Revenue,Services,Human Resources
http://thanet.gov.uk/supplierspend,Thanet District Council,09/04/2015,382253,524.29,,Morgan Jones Ltd,MOR001,Chief Executive,Revenue,Agency Staff,Human Resources
http://thanet.gov.uk/supplierspend,Thanet District Council,09/04/2015,382254,699.3,,Morgan Jones Ltd,MOR001,Community Services,Revenue,Services,Human Resources
http://thanet.gov.uk/supplierspend,Thanet District Council,09/04/2015,381628,1131.9,,Neopost Ltd,NEO003,Community Services,Revenue,"Equip, Furniture And Materials",Mail Services
http://thanet.gov.uk/supplierspend,Thanet District Council,09/04/2015,382275,342.12,,Ocs Group Uk Ltd T/A Cannon,OCS003,Operational Services,Revenue,"Equip, Furniture And Materials",Cleaning And Janitorial
http://thanet.gov.uk/supplierspend,Thanet District Council,09/04/2015,382278,34433.7,,Phoenix Software Ltd,PHO002,Corporate Resources and S151,Revenue,Communications & Computing,ICT
http://thanet.gov.uk/supplierspend,Thanet District Council,09/04/2015,382419,19111.4,,Potter Raper Partnership,POT006,Corporate Resources and S151,Balance Sheet,Other Land And Buildings-Hra,Housing Management
http://thanet.gov.uk/supplierspend,Thanet District Council,09/04/2015,382420,4903.58,,Potter Raper Partnership,POT006,Corporate Resources and S151,Balance Sheet,Council Dwellings,Housing Management
http://thanet.gov.uk/supplierspend,Thanet District Council,09/04/2015,382421,4664.38,,Potter Raper Partnership,POT006,Corporate Resources and S151,Balance Sheet,Council Dwellings,Housing Management
http://thanet.gov.uk/supplierspend,Thanet District Council,09/04/2015,382422,4281.25,,Potter Raper Partnership,POT006,Corporate Resources and S151,Balance Sheet,Council Dwellings,Housing Management
http://thanet.gov.uk/supplierspend,Thanet District Council,09/04/2015,382096,4079.87,,Royal Mail,ROY004,Community Services,Revenue,Communications & Computing,Mail Services
http://thanet.gov.uk/supplierspend,Thanet District Council,09/04/2015,382414,3135.95,,Royal Mail,ROY004,Community Services,Revenue,Communications & Computing,Mail Services
http://thanet.gov.uk/supplierspend,Thanet District Council,09/04/2015,382232,2291,,Sellick Partnership Ltd,SEL011,Corporate Resources and S151,Revenue,Services,Human Resources
http://thanet.gov.uk/supplierspend,Thanet District Council,09/04/2015,382446,2030,,Sellick Partnership Ltd,SEL011,Corporate Resources and S151,Revenue,Services,Human Resources
http://thanet.gov.uk/supplierspend,Thanet District Council,09/04/2015,382453,900,,Sellick Partnership Ltd,SEL011,Community Services,Revenue,Services,Human Resources
http://thanet.gov.uk/supplierspend,Thanet District Council,09/04/2015,381863,-439.31,,Southern Water,SWA001,Operational Services,Revenue,Water Services,Utilities
http://thanet.gov.uk/supplierspend,Thanet District Council,09/04/2015,382616,1282.48,,Southern Water,SWA001,Operational Services,Revenue,Water Services,Utilities
http://thanet.gov.uk/supplierspend,Thanet District Council,09/04/2015,382180,490,,Stagecoach Services Limited,STA023,Corporate Resources and S151,Balance Sheet,Staff Bus Permits Holding A/C,Public Transport
http://thanet.gov.uk/supplierspend,Thanet District Council,09/04/2015,381594,420,,Survey And Test,SUR015,Community Services,Revenue,"Equip, Furniture And Materials",Utilities
http://thanet.gov.uk/supplierspend,Thanet District Council,09/04/2015,382037,583.54,,Tfa Fuel Services Ltd,TFA003,Operational Services,Revenue,"Equip, Furniture And Materials",Utilities
http://thanet.gov.uk/supplierspend,Thanet District Council,09/04/2015,382168,21750,,Thanet Dist Citizens Advice Bureau,TDC003,Community Services,Revenue,Grants & Subscriptions,Grants
http://thanet.gov.uk/supplierspend,Thanet District Council,09/04/2015,382662,1320,,The Duncan & Graham Partnership Ltd,DUN015,Corporate Resources and S151,Balance Sheet,Capital Exp-Non Council Assets,Consultancy
http://thanet.gov.uk/supplierspend,Thanet District Council,09/04/2015,382108,320.68,,The Paper Company Limited,PAP003,Community Services,Revenue,"Print, Stat And Gen Off Exps",Stationery
http://thanet.gov.uk/supplierspend,Thanet District Council,09/04/2015,382010,306.82,,Total Supplies Ltd,TOT009,Corporate Resources and S151,Balance Sheet,Cleaning & Domestic Supplies,Cleaning And Janitorial
http://thanet.gov.uk/supplierspend,Thanet District Council,09/04/2015,382100,519,,Uk Power Networks (Operations) Ltd,UKP001,Operational Services,Revenue,"Equip, Furniture And Materials",Utilities
http://thanet.gov.uk/supplierspend,Thanet District Council,09/04/2015,382648,5000,,Westcoast Kent Cic,WES049,Community Services,Revenue,Grants & Subscriptions,Grants
http://thanet.gov.uk/supplierspend,Thanet District Council,09/04/2015,382652,1000,,Westcoast Kent Cic,WES049,Community Services,Revenue,Grants & Subscriptions,Grants
http://thanet.gov.uk/supplierspend,Thanet District Council,14/04/2015,382116,2763,,Commercial Services Trading Ltd,COM048,Corporate Resources and S151,Revenue,Cont Hire & Operating Lease,Various Cats-Public Sector
http://thanet.gov.uk/supplierspend,Thanet District Council,14/04/2015,382018,212.5,,Epos Group (Kent),EPO001,Community Services,Revenue,Expenses,Stationery
http://thanet.gov.uk/supplierspend,Thanet District Council,14/04/2015,382045,2592.28,,Kent County Council (Kcs),KCC003,Community Services,Revenue,"Equip, Furniture And Materials",Facilities And Mangement Serv
http://thanet.gov.uk/supplierspend,Thanet District Council,14/04/2015,382045,262.04,,Kent County Council (Kcs),KCC003,Operational Services,Revenue,"Equip, Furniture And Materials",Facilities And Mangement Serv
http://thanet.gov.uk/supplierspend,Thanet District Council,14/04/2015,382223,6575,,Spider Project Management Ltd,SPI009,Corporate Resources and S151,Balance Sheet,Investment Property For Lease,Consultancy
http://thanet.gov.uk/supplierspend,Thanet District Council,14/04/2015,382249,10625,,Spider Project Management Ltd,SPI009,Corporate Resources and S151,Balance Sheet,Investment Property For Lease,Consultancy
http://thanet.gov.uk/supplierspend,Thanet District Council,15/04/2015,382383,3672.52,,Advanced Business Solutions,COA011,Corporate Resources and S151,Revenue,Communications & Computing,ICT
http://thanet.gov.uk/supplierspend,Thanet District Council,15/04/2015,380454,31.8,,Allstar Business Solutions Ltd,ALL038,Operational Services,Revenue,Direct Transport Costs,Vehicle Management
http://thanet.gov.uk/supplierspend,Thanet District Council,15/04/2015,382852,332.94,,Allstar Business Solutions Ltd,ALL038,Operational Services,Revenue,Direct Transport Costs,Vehicle Management
http://thanet.gov.uk/supplierspend,Thanet District Council,15/04/2015,382000,550.4,,Ass Of Electoral Administrators,AEA001,Corporate Resources and S151,Revenue,Expenses,Human Resources
http://thanet.gov.uk/supplierspend,Thanet District Council,15/04/2015,381521,1500,,Canterbury City Council,CAN004,Community Services,Revenue,Services,Various Cats-Public Sector
http://thanet.gov.uk/supplierspend,Thanet District Council,15/04/2015,382762,1000,,Canterbury City Council,CAN004,Community Services,Revenue,Grants & Subscriptions,Various Cats-Public Sector
http://thanet.gov.uk/supplierspend,Thanet District Council,15/04/2015,382797,399,,Capita Business Services Ltd,CAP001,East Kent Shared Services,Revenue,Expenses,Human Resources
http://thanet.gov.uk/supplierspend,Thanet District Council,15/04/2015,382847,738,,Cardworks Ltd,CAR045,Community Services,Revenue,"Print, Stat And Gen Off Exps",Arts And Leisure Services
http://thanet.gov.uk/supplierspend,Thanet District Council,15/04/2015,382289,1200,,Civica Uk Ltd,CIV003,East Kent Shared Services,Revenue,Communications & Computing,ICT
http://thanet.gov.uk/supplierspend,Thanet District Council,15/04/2015,382743,564.68,,Computerland Uk Limited,COM045,East Kent Shared Services,Revenue,Communications & Computing,ICT
http://thanet.gov.uk/supplierspend,Thanet District Council,15/04/2015,382768,310.1,,Computerland Uk Limited,COM045,East Kent Shared Services,Revenue,"Equip, Furniture And Materials",ICT
http://thanet.gov.uk/supplierspend,Thanet District Council,15/04/2015,382392,690,,Florence Court Hotel,FLO003,Community Services,Revenue,Services,Housing Management
http://thanet.gov.uk/supplierspend,Thanet District Council,15/04/2015,382393,930,,Florence Court Hotel,FLO003,Community Services,Revenue,Services,Housing Management
http://thanet.gov.uk/supplierspend,Thanet District Council,15/04/2015,382394,450,,Florence Court Hotel,FLO003,Community Services,Revenue,Services,Housing Management
http://thanet.gov.uk/supplierspend,Thanet District Council,15/04/2015,382395,930,,Florence Court Hotel,FLO003,Community Services,Revenue,Services,Housing Management
http://thanet.gov.uk/supplierspend,Thanet District Council,15/04/2015,382396,930,,Florence Court Hotel,FLO003,Community Services,Revenue,Services,Housing Management
http://thanet.gov.uk/supplierspend,Thanet District Council,15/04/2015,382397,540,,Florence Court Hotel,FLO003,Community Services,Revenue,Services,Housing Management
http://thanet.gov.uk/supplierspend,Thanet District Council,15/04/2015,382776,250,,Freeflow Limited,FRE010,Operational Services,Revenue,"Repairs,  Alter & Mtce - Build",Building Construction Material
http://thanet.gov.uk/supplierspend,Thanet District Council,15/04/2015,382148,2668.5,,Future-Tech Sci Ltd,FUT001,Community Services,Revenue,"Repairs,  Alter & Mtce - Build",Facilities And Mangement Serv
http://thanet.gov.uk/supplierspend,Thanet District Council,15/04/2015,382334,7534.98,,G Chittenden,CHI001,Operational Services,Revenue,"Repairs,  Alter & Mtce - Build",Construction-Repair And Maint
http://thanet.gov.uk/supplierspend,Thanet District Council,15/04/2015,382774,2780.1,,G Chittenden,CHI001,Operational Services,Revenue,"Repairs,  Alter & Mtce - Build",Construction-Repair And Maint
http://thanet.gov.uk/supplierspend,Thanet District Council,15/04/2015,382860,5620,,G Chittenden,CHI001,Operational Services,Revenue,"Repairs,  Alter & Mtce - Build",Construction-Repair And Maint
http://thanet.gov.uk/supplierspend,Thanet District Council,15/04/2015,382861,429.7,,G Chittenden,CHI001,Operational Services,Revenue,"Repairs,  Alter & Mtce - Build",Construction-Repair And Maint
http://thanet.gov.uk/supplierspend,Thanet District Council,15/04/2015,382863,207.13,,G Chittenden,CHI001,Operational Services,Revenue,"Repairs,  Alter & Mtce - Build",Construction-Repair And Maint
http://thanet.gov.uk/supplierspend,Thanet District Council,15/04/2015,382873,1334.9,,G Chittenden,CHI001,Operational Services,Revenue,"Repairs,  Alter & Mtce - Build",Construction-Repair And Maint
http://thanet.gov.uk/supplierspend,Thanet District Council,15/04/2015,382250,3000,,Gardiner & Theobald Llp,GAR020,Corporate Resources and S151,Balance Sheet,Investment Property For Lease,Consultancy
http://thanet.gov.uk/supplierspend,Thanet District Council,15/04/2015,382251,2400,,Gardiner & Theobald Llp,GAR020,Corporate Resources and S151,Balance Sheet,Investment Property For Lease,Consultancy
http://thanet.gov.uk/supplierspend,Thanet District Council,15/04/2015,382636,2611.29,,Gemini Consultants Ltd,GEM001,Corporate Resources and S151,Revenue,Services,ICT
http://thanet.gov.uk/supplierspend,Thanet District Council,15/04/2015,382637,1651.76,,Gemini Consultants Ltd,GEM001,Corporate Resources and S151,Revenue,Services,ICT
http://thanet.gov.uk/supplierspend,Thanet District Council,15/04/2015,382832,1460,,Holbrook Revell Electrical Ltd,HOL015,Operational Services,Revenue,"Repairs,  Alter & Mtce - Build",Building Construction Material
http://thanet.gov.uk/supplierspend,Thanet District Council,15/04/2015,382855,1506,,Home Start Thanet,HOM016,Community Services,Revenue,Other Transfer Payments,Non Trade Payee
http://thanet.gov.uk/supplierspend,Thanet District Council,15/04/2015,381477,3977.22,,Hr Go Recruitment Ltd,HRG002,Operational Services,Revenue,Agency Staff,Human Resources
http://thanet.gov.uk/supplierspend,Thanet District Council,15/04/2015,382295,3570,,J Redpath Buchanan & Co Ltd,RED001,Corporate Resources and S151,Balance Sheet,Repairs And Mtce Holding A/C,Building Construction Material
http://thanet.gov.uk/supplierspend,Thanet District Council,15/04/2015,382330,2100,,Jeremy Gardner Associates Limited,GAR022,Corporate Resources and S151,Balance Sheet,Investment Property For Lease,Consultancy
http://thanet.gov.uk/supplierspend,Thanet District Council,15/04/2015,382377,348.96,,Kelway Ltd,KEL003,East Kent Shared Services,Revenue,Communications & Computing,ICT
http://thanet.gov.uk/supplierspend,Thanet District Council,15/04/2015,382749,7380.5,,Kent County Council (Kcs),KCC003,Community Services,Revenue,Energy Costs,Facilities And Mangement Serv
http://thanet.gov.uk/supplierspend,Thanet District Council,15/04/2015,382750,9805.07,,Kent County Council (Kcs),KCC003,Operational Services,Revenue,Energy Costs,Facilities And Mangement Serv
http://thanet.gov.uk/supplierspend,Thanet District Council,15/04/2015,382751,3761.61,,Kent County Council (Kcs),KCC003,Operational Services,Revenue,Energy Costs,Facilities And Mangement Serv
http://thanet.gov.uk/supplierspend,Thanet District Council,15/04/2015,382849,215,,L G G Limited,LGG001,Corporate Resources and S151,Revenue,Expenses,Human Resources
http://thanet.gov.uk/supplierspend,Thanet District Council,15/04/2015,382853,1500,,Margate Charter Trustees,MCT001,Community Services,Revenue,Grants & Subscriptions,Various Cats-Public Sector
http://thanet.gov.uk/supplierspend,Thanet District Council,15/04/2015,382385,300,,Maxwells Grounds Maintenance Ltd,MAX002,Community Services,Revenue,"Repairs,  Alter & Mtce - Build",Construction-Repair And Maint
http://thanet.gov.uk/supplierspend,Thanet District Council,15/04/2015,382805,3917.85,,Med Clean South Ltd,MED015,Operational Services,Revenue,Cleaning & Domestic Supplies,Cleaning And Janitorial
http://thanet.gov.uk/supplierspend,Thanet District Council,15/04/2015,380197,4944.6,,Metric Group Ltd,MET001,Operational Services,Revenue,"Equip, Furniture And Materials",Street And Traffic Management
http://thanet.gov.uk/supplierspend,Thanet District Council,15/04/2015,382763,984,,Michael Page Int Recruitment Ltd,PAG008,Corporate Resources and S151,Revenue,Services,Human Resources
http://thanet.gov.uk/supplierspend,Thanet District Council,15/04/2015,382252,1894,,Mono Pumps Ltd,MON011,Operational Services,Revenue,"Repairs,  Alter & Mtce - Build",Building Construction Material
http://thanet.gov.uk/supplierspend,Thanet District Council,15/04/2015,382426,4420,,Mr Philip Woolfe,WOO030,Operational Services,Revenue,Services,Legal Services
http://thanet.gov.uk/supplierspend,Thanet District Council,15/04/2015,382357,420,,Mrs K Hooper,HOO004,Chief Executive,Revenue,Services,Consultancy
http://thanet.gov.uk/supplierspend,Thanet District Council,15/04/2015,382382,650,,Northgate Inf Solutions Uk Ltd,NOR018,East Kent Shared Services,Revenue,Communications & Computing,ICT
http://thanet.gov.uk/supplierspend,Thanet District Council,15/04/2015,382850,2700,,Northwood Builders,NOR002,Corporate Resources and S151,Balance Sheet,Capital Exp-Non Council Assets,Grants
http://thanet.gov.uk/supplierspend,Thanet District Council,15/04/2015,382300,1145.63,,Npower Direct Limited,NPO003,Community Services,Revenue,Energy Costs,Utilities
http://thanet.gov.uk/supplierspend,Thanet District Council,15/04/2015,382644,1822.36,,Oracle Corporation Uk Ltd,ORA001,East Kent Shared Services,Revenue,Communications & Computing,ICT
http://thanet.gov.uk/supplierspend,Thanet District Council,15/04/2015,382059,292.76,,Orange Personal Communications Ltd,ORA002,Corporate Resources and S151,Revenue,Communications & Computing,ICT
http://thanet.gov.uk/supplierspend,Thanet District Council,15/04/2015,382047,2862.44,,Probrand Ltd,PRO012,Corporate Resources and S151,Revenue,Communications & Computing,ICT
http://thanet.gov.uk/supplierspend,Thanet District Council,15/04/2015,382646,20564.16,,Profile Security Services Limited,PRO018,Operational Services,Revenue,Services,Facilities And Mangement Serv
http://thanet.gov.uk/supplierspend,Thanet District Council,15/04/2015,382766,473.45,,Profile Security Services Limited,PRO018,Corporate Resources and S151,Balance Sheet,Rechargeable Works,Facilities And Mangement Serv
http://thanet.gov.uk/supplierspend,Thanet District Council,15/04/2015,382347,385,,R Cannon,CAN007,Operational Services,Revenue,Services,Maritime Services
http://thanet.gov.uk/supplierspend,Thanet District Council,15/04/2015,382417,1450,,Ramboll Uk Limited,RAM043,Corporate Resources and S151,Balance Sheet,Other Land And Buildings-Hra,Facilities And Mangement Serv
http://thanet.gov.uk/supplierspend,Thanet District Council,15/04/2015,382184,10150,,Solace Enterprises Ltd,SOL003,Community Services,Revenue,Services,Consultancy
http://thanet.gov.uk/supplierspend,Thanet District Council,15/04/2015,382848,5669.1,,Solace Enterprises Ltd,SOL003,Corporate Resources and S151,Revenue,Services,Consultancy
http://thanet.gov.uk/supplierspend,Thanet District Council,15/04/2015,380907,300.55,,Southern Electric,SEL007,Operational Services,Revenue,Energy Costs,Utilities
http://thanet.gov.uk/supplierspend,Thanet District Council,15/04/2015,381582,-300.55,,Southern Electric,SEL007,Operational Services,Revenue,Energy Costs,Utilities
http://thanet.gov.uk/supplierspend,Thanet District Council,15/04/2015,381822,1940.37,,Southern Electric,SEL007,Community Services,Revenue,Energy Costs,Utilities
http://thanet.gov.uk/supplierspend,Thanet District Council,15/04/2015,381862,-1416.55,,Southern Electric,SEL007,Community Services,Revenue,Energy Costs,Utilities
http://thanet.gov.uk/supplierspend,Thanet District Council,15/04/2015,382073,247.47,,Southern Electric,SEL007,Operational Services,Revenue,Energy Costs,Utilities
http://thanet.gov.uk/supplierspend,Thanet District Council,15/04/2015,382079,314.82,,Southern Electric,SEL007,Community Services,Revenue,Energy Costs,Utilities
http://thanet.gov.uk/supplierspend,Thanet District Council,15/04/2015,382125,-478.1,,Southern Electric,SEL007,Community Services,Revenue,Energy Costs,Utilities
http://thanet.gov.uk/supplierspend,Thanet District Council,15/04/2015,382623,4.72,,Southern Electric,SEL007,Community Services,Revenue,Energy Costs,Utilities
http://thanet.gov.uk/supplierspend,Thanet District Council,15/04/2015,382623,490.54,,Southern Electric,SEL007,Operational Services,Revenue,Energy Costs,Utilities
http://thanet.gov.uk/supplierspend,Thanet District Council,15/04/2015,382624,272.89,,Southern Electric,SEL007,Operational Services,Revenue,Energy Costs,Utilities
http://thanet.gov.uk/supplierspend,Thanet District Council,15/04/2015,382647,222.8,,Southern Electric,SEL007,Operational Services,Revenue,Energy Costs,Utilities
http://thanet.gov.uk/supplierspend,Thanet District Council,15/04/2015,382084,1208.31,,The Glenwood Hotel,GLE007,Community Services,Revenue,Services,Housing Management
http://thanet.gov.uk/supplierspend,Thanet District Council,15/04/2015,382085,2229.14,,The Glenwood Hotel,GLE007,Community Services,Revenue,Services,Housing Management
http://thanet.gov.uk/supplierspend,Thanet District Council,15/04/2015,382413,1458.3,,The Glenwood Hotel,GLE007,Community Services,Revenue,Services,Housing Management
http://thanet.gov.uk/supplierspend,Thanet District Council,15/04/2015,382838,1666.67,,Tourism Works,TOU007,Community Services,Revenue,Services,Facilities And Mangement Serv
http://thanet.gov.uk/supplierspend,Thanet District Council,15/04/2015,382384,240,,W Brazil & Bros,BRA001,Operational Services,Revenue,Services,Environmental Services
http://thanet.gov.uk/supplierspend,Thanet District Council,17/04/2015,N/A,1007.54,,REDACTED PERSONAL DATA,N/A,East Kent Shared Services,Revenue,Public Transport,Non Trade Payee
http://thanet.gov.uk/supplierspend,Thanet District Council,17/04/2015,N/A,311.98,,REDACTED PERSONAL DATA,N/A,East Kent Shared Services,Revenue,Car Allowances,Non Trade Payee
http://thanet.gov.uk/supplierspend,Thanet District Council,17/04/2015,N/A,358.31,,REDACTED PERSONAL DATA,N/A,Operational Services,Revenue,Car Allowances,Non Trade Payee
http://thanet.gov.uk/supplierspend,Thanet District Council,17/04/2015,N/A,8.6,,REDACTED PERSONAL DATA,N/A,Community Services,Revenue,Public Transport,Non Trade Payee
http://thanet.gov.uk/supplierspend,Thanet District Council,17/04/2015,N/A,253.37,,REDACTED PERSONAL DATA,N/A,Community Services,Revenue,Car Allowances,Non Trade Payee
http://thanet.gov.uk/supplierspend,Thanet District Council,17/04/2015,N/A,341.29,,REDACTED PERSONAL DATA,N/A,Operational Services,Revenue,Car Allowances,Non Trade Payee
http://thanet.gov.uk/supplierspend,Thanet District Council,17/04/2015,N/A,450.01,,REDACTED PERSONAL DATA,N/A,Operational Services,Revenue,Car Allowances,Non Trade Payee
http://thanet.gov.uk/supplierspend,Thanet District Council,17/04/2015,N/A,1056.01,,REDACTED PERSONAL DATA,N/A,Community Services,Revenue,Car Allowances,Non Trade Payee
http://thanet.gov.uk/supplierspend,Thanet District Council,17/04/2015,N/A,251.49,,REDACTED PERSONAL DATA,N/A,Community Services,Revenue,Car Allowances,Non Trade Payee
http://thanet.gov.uk/supplierspend,Thanet District Council,17/04/2015,N/A,6.8,,REDACTED PERSONAL DATA,N/A,Community Services,Revenue,Public Transport,Non Trade Payee
http://thanet.gov.uk/supplierspend,Thanet District Council,17/04/2015,N/A,14,,REDACTED PERSONAL DATA,N/A,Community Services,Revenue,"Print, Stat And Gen Off Exps",Non Trade Payee
http://thanet.gov.uk/supplierspend,Thanet District Council,17/04/2015,N/A,355.47,,REDACTED PERSONAL DATA,N/A,Community Services,Revenue,Car Allowances,Non Trade Payee
http://thanet.gov.uk/supplierspend,Thanet District Council,17/04/2015,N/A,256.2,,REDACTED PERSONAL DATA,N/A,Operational Services,Revenue,Car Allowances,Non Trade Payee
http://thanet.gov.uk/supplierspend,Thanet District Council,17/04/2015,N/A,318.41,,REDACTED PERSONAL DATA,N/A,East Kent Shared Services,Revenue,Car Allowances,Non Trade Payee
http://thanet.gov.uk/supplierspend,Thanet District Council,17/04/2015,N/A,33.3,,REDACTED PERSONAL DATA,N/A,Community Services,Revenue,Public Transport,Non Trade Payee
http://thanet.gov.uk/supplierspend,Thanet District Council,17/04/2015,N/A,287.24,,REDACTED PERSONAL DATA,N/A,Community Services,Revenue,Car Allowances,Non Trade Payee
http://thanet.gov.uk/supplierspend,Thanet District Council,17/04/2015,N/A,289.29,,REDACTED PERSONAL DATA,N/A,Operational Services,Revenue,Car Allowances,Non Trade Payee
http://thanet.gov.uk/supplierspend,Thanet District Council,17/04/2015,N/A,579.53,,REDACTED PERSONAL DATA,N/A,East Kent Shared Services,Revenue,Car Allowances,Non Trade Payee
http://thanet.gov.uk/supplierspend,Thanet District Council,17/04/2015,N/A,289.29,,REDACTED PERSONAL DATA,N/A,Community Services,Revenue,Car Allowances,Non Trade Payee
http://thanet.gov.uk/supplierspend,Thanet District Council,17/04/2015,N/A,305.36,,REDACTED PERSONAL DATA,N/A,Community Services,Revenue,Car Allowances,Non Trade Payee
http://thanet.gov.uk/supplierspend,Thanet District Council,17/04/2015,N/A,707.6,,REDACTED PERSONAL DATA,N/A,East Kent Shared Services,Revenue,Public Transport,Non Trade Payee
http://thanet.gov.uk/supplierspend,Thanet District Council,17/04/2015,N/A,460.41,,REDACTED PERSONAL DATA,N/A,Operational Services,Revenue,Car Allowances,Non Trade Payee
http://thanet.gov.uk/supplierspend,Thanet District Council,17/04/2015,N/A,456.63,,REDACTED PERSONAL DATA,N/A,East Kent Shared Services,Revenue,Car Allowances,Non Trade Payee
http://thanet.gov.uk/supplierspend,Thanet District Council,17/04/2015,N/A,382.89,,REDACTED PERSONAL DATA,N/A,East Kent Shared Services,Revenue,Car Allowances,Non Trade Payee
http://thanet.gov.uk/supplierspend,Thanet District Council,17/04/2015,N/A,285.51,,REDACTED PERSONAL DATA,N/A,East Kent Shared Services,Revenue,Car Allowances,Non Trade Payee
http://thanet.gov.uk/supplierspend,Thanet District Council,20/04/2015,382225,375,,Abate (Kent) Limited,ABA007,Corporate Resources and S151,Balance Sheet,Repairs And Mtce Holding A/C,Environmental Services
http://thanet.gov.uk/supplierspend,Thanet District Council,20/04/2015,382449,437.5,,Access Matters Uk,ACC008,Corporate Resources and S151,Balance Sheet,Investment Property For Lease,Consultancy
http://thanet.gov.uk/supplierspend,Thanet District Council,20/04/2015,383257,2443.5,,Acol Parish Council,ACO001,Corporate Resources and S151,Balance Sheet,Collection Fund - Preceptors,Various Cats-Public Sector
http://thanet.gov.uk/supplierspend,Thanet District Council,20/04/2015,383257,388.05,,Acol Parish Council,ACO001,Operational Services,Revenue,Other Local Authorities,Various Cats-Public Sector
http://thanet.gov.uk/supplierspend,Thanet District Council,20/04/2015,383053,1260,,Adelante Software Limited,ADE002,Corporate Resources and S151,Revenue,Communications & Computing,ICT
http://thanet.gov.uk/supplierspend,Thanet District Council,20/04/2015,381979,495,,All Access Ltd,ALL031,Corporate Resources and S151,Balance Sheet,Rechargeable Works,Building Construction Material
http://thanet.gov.uk/supplierspend,Thanet District Council,20/04/2015,383201,570.97,,Allstar Business Solutions Ltd,ALL038,Operational Services,Revenue,Direct Transport Costs,Vehicle Management
http://thanet.gov.uk/supplierspend,Thanet District Council,20/04/2015,382643,4247.5,,Ashcleanpark Limited,ASH012,Operational Services,Revenue,"Equip, Furniture And Materials",Construction-Repair And Maint
http://thanet.gov.uk/supplierspend,Thanet District Council,20/04/2015,382643,4247.5,,Ashcleanpark Limited,ASH012,Operational Services,Revenue,"Repairs,  Alter & Mtce - Build",Construction-Repair And Maint
http://thanet.gov.uk/supplierspend,Thanet District Council,20/04/2015,382298,172.42,,Ass For Public Service Excellence,ASS013,Corporate Resources and S151,Revenue,Grants & Subscriptions,Human Resources
http://thanet.gov.uk/supplierspend,Thanet District Council,20/04/2015,382298,173.42,,Ass For Public Service Excellence,ASS013,Community Services,Revenue,Grants & Subscriptions,Human Resources
http://thanet.gov.uk/supplierspend,Thanet District Council,20/04/2015,382298,1808.16,,Ass For Public Service Excellence,ASS013,Operational Services,Revenue,Grants & Subscriptions,Human Resources
http://thanet.gov.uk/supplierspend,Thanet District Council,20/04/2015,382153,4232,,Bartram Mowers Limited,BAR054,Operational Services,Revenue,"Equip, Furniture And Materials",Horticultural
http://thanet.gov.uk/supplierspend,Thanet District Council,20/04/2015,383254,24041,,Birchington Parish Council,BIR001,Corporate Resources and S151,Balance Sheet,Collection Fund - Preceptors,Various Cats-Public Sector
http://thanet.gov.uk/supplierspend,Thanet District Council,20/04/2015,383254,1981.86,,Birchington Parish Council,BIR001,Operational Services,Revenue,Other Local Authorities,Various Cats-Public Sector
http://thanet.gov.uk/supplierspend,Thanet District Council,20/04/2015,382283,271.9,,Bishop Sports & Leisure Ltd,BIS003,Community Services,Revenue,"Equip, Furniture And Materials",Sports Playground Equipment
http://thanet.gov.uk/supplierspend,Thanet District Council,20/04/2015,382629,278.5,,Bishop Sports & Leisure Ltd,BIS003,Community Services,Revenue,"Equip, Furniture And Materials",Sports Playground Equipment
http://thanet.gov.uk/supplierspend,Thanet District Council,20/04/2015,383065,1724.78,,Bridge Security Cctv Ltd,BRI039,Community Services,Revenue,Services,Facilities And Mangement Serv
http://thanet.gov.uk/supplierspend,Thanet District Council,20/04/2015,383070,775,,Bridge Security Cctv Ltd,BRI039,Operational Services,Revenue,Services,Facilities And Mangement Serv
http://thanet.gov.uk/supplierspend,Thanet District Council,20/04/2015,383255,134879,,Broadstairs & St Peters Town Council,BRO005,Corporate Resources and S151,Balance Sheet,Collection Fund - Preceptors,Various Cats-Public Sector
http://thanet.gov.uk/supplierspend,Thanet District Council,20/04/2015,383255,11543.45,,Broadstairs & St Peters Town Council,BRO005,Operational Services,Revenue,Other Local Authorities,Various Cats-Public Sector
http://thanet.gov.uk/supplierspend,Thanet District Council,20/04/2015,382235,1750,,Call Flow Solutions Limited,CAL006,Community Services,Revenue,Communications & Computing,ICT
http://thanet.gov.uk/supplierspend,Thanet District Council,20/04/2015,382236,2261.81,,Call Flow Solutions Limited,CAL006,Community Services,Revenue,Communications & Computing,ICT
http://thanet.gov.uk/supplierspend,Thanet District Council,20/04/2015,382425,2000,,Campbell Reith Hill Llp,CAM013,Corporate Resources and S151,Balance Sheet,Investment Property For Lease,Consultancy
http://thanet.gov.uk/supplierspend,Thanet District Council,20/04/2015,381956,319,,Canon (Uk) Ltd,CAN021,Corporate Resources and S151,Balance Sheet,Plant And Equipment,Facilities And Mangement Serv
http://thanet.gov.uk/supplierspend,Thanet District Council,20/04/2015,381957,12230,,Canon (Uk) Ltd,CAN021,Corporate Resources and S151,Balance Sheet,Plant And Equipment,Facilities And Mangement Serv
http://thanet.gov.uk/supplierspend,Thanet District Council,20/04/2015,383055,2729.67,,Canterbury Christ Church University,CAN006,Community Services,Revenue,Services,Various Categories
http://thanet.gov.uk/supplierspend,Thanet District Council,20/04/2015,383087,53629,,Capita Business Services Ltd,CAP001,Community Services,Revenue,Communications & Computing,Human Resources
http://thanet.gov.uk/supplierspend,Thanet District Council,20/04/2015,382088,301.7,,City Electrical Factors Ltd,CIT001,Operational Services,Revenue,"Repairs,  Alter & Mtce - Build",Building Construction Material
http://thanet.gov.uk/supplierspend,Thanet District Council,20/04/2015,383224,270.04,,City Electrical Factors Ltd,CIT001,Operational Services,Revenue,"Repairs,  Alter & Mtce - Build",Building Construction Material
http://thanet.gov.uk/supplierspend,Thanet District Council,20/04/2015,381566,822,,Clear Picture Services Limited,CLE015,Corporate Resources and S151,Balance Sheet,Repairs And Mtce Holding A/C,Facilities And Mangement Serv
http://thanet.gov.uk/supplierspend,Thanet District Council,20/04/2015,382964,2045.97,,Cleveland Cable Company Limited,CLE019,Operational Services,Revenue,"Repairs,  Alter & Mtce - Build",Building Construction Material
http://thanet.gov.uk/supplierspend,Thanet District Council,20/04/2015,383253,6974,,Cliffsend Parish Council,CLI015,Corporate Resources and S151,Balance Sheet,Collection Fund - Preceptors,Various Cats-Public Sector
http://thanet.gov.uk/supplierspend,Thanet District Council,20/04/2015,383253,448.61,,Cliffsend Parish Council,CLI015,Operational Services,Revenue,Other Local Authorities,Various Cats-Public Sector
http://thanet.gov.uk/supplierspend,Thanet District Council,20/04/2015,382758,1188.4,,Cobalt Telephone Technologies Ltd,COB002,Operational Services,Revenue,Services,ICT
http://thanet.gov.uk/supplierspend,Thanet District Council,20/04/2015,382813,1082.47,,Data Integration Limited,DAT006,East Kent Shared Services,Revenue,Communications & Computing,ICT
http://thanet.gov.uk/supplierspend,Thanet District Council,20/04/2015,382055,342.72,,Dennis Eagle Ltd,DEN005,Operational Services,Revenue,Direct Transport Costs,Vehicle Management
http://thanet.gov.uk/supplierspend,Thanet District Council,20/04/2015,382056,473.56,,Dennis Eagle Ltd,DEN005,Operational Services,Revenue,Direct Transport Costs,Vehicle Management
http://thanet.gov.uk/supplierspend,Thanet District Council,20/04/2015,382331,704,,Disclosure And Barring Service,DIS017,Community Services,Revenue,"Equip, Furniture And Materials",Human Resources
http://thanet.gov.uk/supplierspend,Thanet District Council,20/04/2015,381976,399,,Downfast Demolition & Salvage Ltd,DOW001,Corporate Resources and S151,Balance Sheet,Rechargeable Works,Building Construction Material
http://thanet.gov.uk/supplierspend,Thanet District Council,20/04/2015,381977,418,,Downfast Demolition & Salvage Ltd,DOW001,Corporate Resources and S151,Balance Sheet,Rechargeable Works,Building Construction Material
http://thanet.gov.uk/supplierspend,Thanet District Council,20/04/2015,382227,1721.19,,E Saunders Margate Ltd,SAU001,Corporate Resources and S151,Balance Sheet,Repairs And Mtce Holding A/C,Construction-Repair And Maint
http://thanet.gov.uk/supplierspend,Thanet District Council,20/04/2015,382228,1064.86,,E Saunders Margate Ltd,SAU001,Corporate Resources and S151,Balance Sheet,Repairs And Mtce Holding A/C,Construction-Repair And Maint
http://thanet.gov.uk/supplierspend,Thanet District Council,20/04/2015,382292,2306.25,,E Saunders Margate Ltd,SAU001,Corporate Resources and S151,Balance Sheet,Repairs And Mtce Holding A/C,Construction-Repair And Maint
http://thanet.gov.uk/supplierspend,Thanet District Council,20/04/2015,382294,688.47,,E Saunders Margate Ltd,SAU001,Corporate Resources and S151,Balance Sheet,Repairs And Mtce Holding A/C,Construction-Repair And Maint
http://thanet.gov.uk/supplierspend,Thanet District Council,20/04/2015,382773,344.74,,E Saunders Margate Ltd,SAU001,Operational Services,Revenue,"Repairs,  Alter & Mtce - Build",Construction-Repair And Maint
http://thanet.gov.uk/supplierspend,Thanet District Council,20/04/2015,382182,1656,,Exterion Media (Uk) Limited,EXT002,Corporate Resources and S151,Revenue,Miscellaneous Expenses,Facilities And Mangement Serv
http://thanet.gov.uk/supplierspend,Thanet District Council,20/04/2015,382183,1904,,Exterion Media (Uk) Limited,EXT002,Corporate Resources and S151,Revenue,Miscellaneous Expenses,Facilities And Mangement Serv
http://thanet.gov.uk/supplierspend,Thanet District Council,20/04/2015,382356,340.55,,Guardian Security & Fire Ltd,GUA005,Operational Services,Revenue,"Repairs,  Alter & Mtce - Build",Health And Safety
http://thanet.gov.uk/supplierspend,Thanet District Council,20/04/2015,382777,1711.2,,Hi Way Services Ltd,HIW002,Operational Services,Revenue,"Repairs,  Alter & Mtce - Build",Highway Equipment And Material
http://thanet.gov.uk/supplierspend,Thanet District Council,20/04/2015,382178,1920,,Holbrook Revell Electrical Ltd,HOL015,Operational Services,Revenue,"Repairs,  Alter & Mtce - Build",Building Construction Material
http://thanet.gov.uk/supplierspend,Thanet District Council,20/04/2015,382264,840,,Hr Go Recruitment Ltd,HRG002,Operational Services,Revenue,Agency Staff,Human Resources
http://thanet.gov.uk/supplierspend,Thanet District Council,20/04/2015,382791,309.4,,Hr Go Recruitment Ltd,HRG002,Community Services,Revenue,Agency Staff,Human Resources
http://thanet.gov.uk/supplierspend,Thanet District Council,20/04/2015,382793,504,,Hr Go Recruitment Ltd,HRG002,Operational Services,Revenue,Agency Staff,Human Resources
http://thanet.gov.uk/supplierspend,Thanet District Council,20/04/2015,383171,309.4,,Hr Go Recruitment Ltd,HRG002,Community Services,Revenue,Agency Staff,Human Resources
http://thanet.gov.uk/supplierspend,Thanet District Council,20/04/2015,382247,1360,,Idox Software  Limited,IDO001,Community Services,Revenue,Communications & Computing,ICT
http://thanet.gov.uk/supplierspend,Thanet District Council,20/04/2015,382268,3940.4,,Institute For Sustainability,INS028,Operational Services,Revenue,Services,Consultancy
http://thanet.gov.uk/supplierspend,Thanet District Council,20/04/2015,383238,342.61,,Joss Bay Cafe,JOS002,Operational Services,Revenue,Water Services,Non Trade Payee
http://thanet.gov.uk/supplierspend,Thanet District Council,20/04/2015,383236,236993,,Kent & Medway Towns Fire Authority,KMT001,Corporate Resources and S151,Balance Sheet,Collection Fund - Preceptors,Various Cats-Public Sector
http://thanet.gov.uk/supplierspend,Thanet District Council,20/04/2015,382336,1120,,Kent County Council,KCC002,Community Services,Revenue,Services,Various Cats-Public Sector
http://thanet.gov.uk/supplierspend,Thanet District Council,20/04/2015,382755,269.03,,Kent County Council,KCC002,Operational Services,Revenue,Communications & Computing,Various Cats-Public Sector
http://thanet.gov.uk/supplierspend,Thanet District Council,20/04/2015,382775,1030.56,,Kent County Council,KCC002,Community Services,Revenue,Rents,Various Cats-Public Sector
http://thanet.gov.uk/supplierspend,Thanet District Council,20/04/2015,383234,3663427,,Kent County Council,KCC022,Corporate Resources and S151,Balance Sheet,Collection Fund - Preceptors,Various Cats-Public Sector
http://thanet.gov.uk/supplierspend,Thanet District Council,20/04/2015,382019,234.25,,Kent County Council (Kcs),KCC003,Community Services,Revenue,"Repairs,  Alter & Mtce - Build",Facilities And Mangement Serv
http://thanet.gov.uk/supplierspend,Thanet District Council,20/04/2015,382376,245.81,,Kent County Council (Kcs),KCC003,Community Services,Revenue,"Equip, Furniture And Materials",Facilities And Mangement Serv
http://thanet.gov.uk/supplierspend,Thanet District Council,20/04/2015,383235,495883.3,,Kent Police & Crime Commissioner,KPA003,Corporate Resources and S151,Balance Sheet,Collection Fund - Preceptors,Various Cats-Public Sector
http://thanet.gov.uk/supplierspend,Thanet District Council,20/04/2015,383194,3000,,Kent Pride,KEN056,Community Services,Revenue,Grants & Subscriptions,Grants
http://thanet.gov.uk/supplierspend,Thanet District Council,20/04/2015,382411,692.4,,Ling Metals Limited,LIN004,Operational Services,Revenue,Cleaning & Domestic Supplies,Environmental Services
http://thanet.gov.uk/supplierspend,Thanet District Council,20/04/2015,383050,543.98,,Local World Limited,LOC018,Corporate Resources and S151,Revenue,Miscellaneous Expenses,Facilities And Mangement Serv
http://thanet.gov.uk/supplierspend,Thanet District Council,20/04/2015,383256,8243.5,,Manston Parish Council,MAN001,Corporate Resources and S151,Balance Sheet,Collection Fund - Preceptors,Various Cats-Public Sector
http://thanet.gov.uk/supplierspend,Thanet District Council,20/04/2015,383256,1704.4,,Manston Parish Council,MAN001,Operational Services,Revenue,Other Local Authorities,Various Cats-Public Sector
http://thanet.gov.uk/supplierspend,Thanet District Council,20/04/2015,383251,37720,,Margate Charter Trustees,MCT001,Corporate Resources and S151,Balance Sheet,Collection Fund - Preceptors,Various Cats-Public Sector
http://thanet.gov.uk/supplierspend,Thanet District Council,20/04/2015,383251,10726.58,,Margate Charter Trustees,MCT001,Operational Services,Revenue,Other Local Authorities,Various Cats-Public Sector
http://thanet.gov.uk/supplierspend,Thanet District Council,20/04/2015,383041,1009.85,,Med Clean South Ltd,MED015,Operational Services,Revenue,"Repairs,  Alter & Mtce - Build",Cleaning And Janitorial
http://thanet.gov.uk/supplierspend,Thanet District Council,20/04/2015,382988,1440,,Michael Page Int Recruitment Ltd,PAG008,Corporate Resources and S151,Revenue,Services,Human Resources
http://thanet.gov.uk/supplierspend,Thanet District Council,20/04/2015,383258,26288,,Minster Parish Council,MIN001,Corporate Resources and S151,Balance Sheet,Collection Fund - Preceptors,Various Cats-Public Sector
http://thanet.gov.uk/supplierspend,Thanet District Council,20/04/2015,383258,16250.65,,Minster Parish Council,MIN001,Operational Services,Revenue,Other Local Authorities,Various Cats-Public Sector
http://thanet.gov.uk/supplierspend,Thanet District Council,20/04/2015,383192,1000,,Minster Twinning Association,MIN020,Community Services,Revenue,Grants & Subscriptions,Grants
http://thanet.gov.uk/supplierspend,Thanet District Council,20/04/2015,381806,500,,Modern Mindset Ltd,MOD004,Corporate Resources and S151,Revenue,Communications & Computing,ICT
http://thanet.gov.uk/supplierspend,Thanet District Council,20/04/2015,383259,3979,,Monkton Parish Council,MON001,Corporate Resources and S151,Balance Sheet,Collection Fund - Preceptors,Various Cats-Public Sector
http://thanet.gov.uk/supplierspend,Thanet District Council,20/04/2015,383259,1186.95,,Monkton Parish Council,MON001,Operational Services,Revenue,Other Local Authorities,Various Cats-Public Sector
http://thanet.gov.uk/supplierspend,Thanet District Council,20/04/2015,382621,557.55,,Morgan Jones Ltd,MOR001,Community Services,Revenue,Services,Human Resources
http://thanet.gov.uk/supplierspend,Thanet District Council,20/04/2015,382796,320,,Motiv8 Sports & Consulting Ltd,MOT008,Community Services,Revenue,Services,Arts And Leisure Services
http://thanet.gov.uk/supplierspend,Thanet District Council,20/04/2015,382151,622.5,,Mr Darren Osborne,OSB008,Community Services,Revenue,Cleaning & Domestic Supplies,Cleaning And Janitorial
http://thanet.gov.uk/supplierspend,Thanet District Council,20/04/2015,382151,30,,Mr Darren Osborne,OSB008,Operational Services,Revenue,Cleaning & Domestic Supplies,Cleaning And Janitorial
http://thanet.gov.uk/supplierspend,Thanet District Council,20/04/2015,382277,2745,,Nagels Uk Ltd,NAG001,Operational Services,Revenue,"Print, Stat And Gen Off Exps",Facilities And Mangement Serv
http://thanet.gov.uk/supplierspend,Thanet District Council,20/04/2015,383243,3000,,Neopost Ltd Credifon,NEO002,Community Services,Revenue,Communications & Computing,Mail Services
http://thanet.gov.uk/supplierspend,Thanet District Council,20/04/2015,382827,329.18,,Npower Limited,NPO001,Community Services,Revenue,Energy Costs,Utilities
http://thanet.gov.uk/supplierspend,Thanet District Council,20/04/2015,382834,3853.8,,Objectif,OBJ001,Community Services,Revenue,"Equip, Furniture And Materials",Arts And Leisure Services
http://thanet.gov.uk/supplierspend,Thanet District Council,20/04/2015,382219,391.08,,Ocs Group Uk Ltd T/A Cannon,OCS003,Community Services,Revenue,Fixtures & Fittings,Cleaning And Janitorial
http://thanet.gov.uk/supplierspend,Thanet District Council,20/04/2015,382222,338.52,,Ocs Group Uk Ltd T/A Cannon,OCS003,Community Services,Revenue,Fixtures & Fittings,Cleaning And Janitorial
http://thanet.gov.uk/supplierspend,Thanet District Council,20/04/2015,381803,1810.17,,Oracle Corporation Uk Ltd,ORA001,East Kent Shared Services,Revenue,Communications & Computing,ICT
http://thanet.gov.uk/supplierspend,Thanet District Council,20/04/2015,382352,10481,,Pakflatt (Uk) Ltd,PAK001,Corporate Resources and S151,Revenue,"Equip, Furniture And Materials",Legal Services
http://thanet.gov.uk/supplierspend,Thanet District Council,20/04/2015,382113,608,,Parkeon Limited,PAR063,Operational Services,Revenue,"Equip, Furniture And Materials",Street And Traffic Management
http://thanet.gov.uk/supplierspend,Thanet District Council,20/04/2015,382297,684.5,,Parkeon Limited,PAR063,Operational Services,Revenue,"Equip, Furniture And Materials",Street And Traffic Management
http://thanet.gov.uk/supplierspend,Thanet District Council,20/04/2015,382368,1484,,Patrol,PAT004,Operational Services,Revenue,Services,Street And Traffic Management
http://thanet.gov.uk/supplierspend,Thanet District Council,20/04/2015,382448,3797.5,,R Cannon,CAN007,Operational Services,Revenue,"Equip, Furniture And Materials",Maritime Services
http://thanet.gov.uk/supplierspend,Thanet District Council,20/04/2015,383110,647.5,,R Cannon,CAN007,Operational Services,Revenue,Services,Maritime Services
http://thanet.gov.uk/supplierspend,Thanet District Council,20/04/2015,383252,144069.5,,Ramsgate Town Council,RAM031,Corporate Resources and S151,Balance Sheet,Collection Fund - Preceptors,Various Cats-Public Sector
http://thanet.gov.uk/supplierspend,Thanet District Council,20/04/2015,383252,39835,,Ramsgate Town Council,RAM031,Operational Services,Revenue,Other Local Authorities,Various Cats-Public Sector
http://thanet.gov.uk/supplierspend,Thanet District Council,20/04/2015,383036,1730,,Rigby Taylor Ltd,RIG002,Operational Services,Revenue,"Equip, Furniture And Materials",Horticultural
http://thanet.gov.uk/supplierspend,Thanet District Council,20/04/2015,383250,39993.5,,River Stour (Kent) Int Drainage Brd,RIV001,Community Services,Revenue,Rates,Various Categories
http://thanet.gov.uk/supplierspend,Thanet District Council,20/04/2015,382083,608,,S W Flooring (South East) Limited,SWF002,Community Services,Revenue,Fixtures & Fittings,Building Construction Material
http://thanet.gov.uk/supplierspend,Thanet District Council,20/04/2015,382452,652.5,,Secure Living Limited,SEC018,Operational Services,Revenue,Miscellaneous Expenses,Maritime Services
http://thanet.gov.uk/supplierspend,Thanet District Council,20/04/2015,382358,775.25,,Sellick Partnership Ltd,SEL011,Corporate Resources and S151,Revenue,Agency Staff,Human Resources
http://thanet.gov.uk/supplierspend,Thanet District Council,20/04/2015,382366,1620,,Sellick Partnership Ltd,SEL011,Corporate Resources and S151,Revenue,Agency Staff,Human Resources
http://thanet.gov.uk/supplierspend,Thanet District Council,20/04/2015,382826,2146,,Sellick Partnership Ltd,SEL011,Corporate Resources and S151,Revenue,Services,Human Resources
http://thanet.gov.uk/supplierspend,Thanet District Council,20/04/2015,383040,1845,,Sellick Partnership Ltd,SEL011,Corporate Resources and S151,Revenue,Agency Staff,Human Resources
http://thanet.gov.uk/supplierspend,Thanet District Council,20/04/2015,383044,802.55,,Sellick Partnership Ltd,SEL011,Corporate Resources and S151,Revenue,Agency Staff,Human Resources
http://thanet.gov.uk/supplierspend,Thanet District Council,20/04/2015,381631,1469.8,,Serco Ltd,SER002,Operational Services,Revenue,"Equip, Furniture And Materials",Building Construction Material
http://thanet.gov.uk/supplierspend,Thanet District Council,20/04/2015,382761,712.45,,Shaw & Sons Ltd,SHA002,Corporate Resources and S151,Revenue,"Print, Stat And Gen Off Exps",Facilities And Mangement Serv
http://thanet.gov.uk/supplierspend,Thanet District Council,20/04/2015,381807,1321,,Shaw Electrical,SHA005,Operational Services,Revenue,"Equip, Furniture And Materials",Building Construction Material
http://thanet.gov.uk/supplierspend,Thanet District Council,20/04/2015,382057,1500,,Sjr Pm Solutions Limited,SJR001,East Kent Shared Services,Revenue,Services,ICT
http://thanet.gov.uk/supplierspend,Thanet District Council,20/04/2015,382348,900,,Sjr Pm Solutions Limited,SJR001,East Kent Shared Services,Revenue,Services,ICT
http://thanet.gov.uk/supplierspend,Thanet District Council,20/04/2015,383037,1200,,Sjr Pm Solutions Limited,SJR001,East Kent Shared Services,Revenue,Services,ICT
http://thanet.gov.uk/supplierspend,Thanet District Council,20/04/2015,382829,588.99,,Southern Water,SWA001,Operational Services,Revenue,Water Services,Utilities
http://thanet.gov.uk/supplierspend,Thanet District Council,20/04/2015,383260,7661,,St Nicholas At Wade & Sarre P Counc,STN001,Corporate Resources and S151,Balance Sheet,Collection Fund - Preceptors,Various Cats-Public Sector
http://thanet.gov.uk/supplierspend,Thanet District Council,20/04/2015,383260,366.5,,St Nicholas At Wade & Sarre P Counc,STN001,Operational Services,Revenue,Grants & Subscriptions,Various Cats-Public Sector
http://thanet.gov.uk/supplierspend,Thanet District Council,20/04/2015,383260,4414.8,,St Nicholas At Wade & Sarre P Counc,STN001,Operational Services,Revenue,Other Local Authorities,Various Cats-Public Sector
http://thanet.gov.uk/supplierspend,Thanet District Council,20/04/2015,383095,211.55,,Standfast Burglar Alarm Co (Ek) Ltd,STA003,Community Services,Revenue,"Repairs,  Alter & Mtce - Build",Facilities And Mangement Serv
http://thanet.gov.uk/supplierspend,Thanet District Council,20/04/2015,382984,210.34,,Stokes Bros,STO001,Operational Services,Revenue,"Repairs,  Alter & Mtce - Build",Building Construction Material
http://thanet.gov.uk/supplierspend,Thanet District Council,20/04/2015,382016,600,,Tennants Distribution Limited,TEN005,Operational Services,Revenue,Direct Transport Costs,Vehicle Management
http://thanet.gov.uk/supplierspend,Thanet District Council,20/04/2015,382428,702.61,,Tfa Fuel Services Ltd,TFA003,Operational Services,Revenue,"Equip, Furniture And Materials",Utilities
http://thanet.gov.uk/supplierspend,Thanet District Council,20/04/2015,382429,1221.03,,Tfa Fuel Services Ltd,TFA003,Operational Services,Revenue,"Equip, Furniture And Materials",Utilities
http://thanet.gov.uk/supplierspend,Thanet District Council,20/04/2015,383045,312,,Thanet Safe Limited,TSA004,Operational Services,Revenue,"Equip, Furniture And Materials",Facilities And Mangement Serv
http://thanet.gov.uk/supplierspend,Thanet District Council,20/04/2015,382418,492.3,,Thanet Waste Services Ltd,TWA001,Operational Services,Revenue,Private Contractors,Environmental Services
http://thanet.gov.uk/supplierspend,Thanet District Council,20/04/2015,383105,2238.76,,The Copyright Licensing Agency Ltd,COP001,Corporate Resources and S151,Revenue,Grants & Subscriptions,Financial Services
http://thanet.gov.uk/supplierspend,Thanet District Council,20/04/2015,383195,500,,The Information Commissioner,INF005,Corporate Resources and S151,Revenue,Grants & Subscriptions,ICT
http://thanet.gov.uk/supplierspend,Thanet District Council,20/04/2015,382109,16990,,The Marlowe Academy,MAR058,Community Services,Revenue,Grants & Subscriptions,Grants
http://thanet.gov.uk/supplierspend,Thanet District Council,20/04/2015,381879,5000,,The Pipeline,PIP002,Community Services,Revenue,Grants & Subscriptions,Grants
http://thanet.gov.uk/supplierspend,Thanet District Council,20/04/2015,383060,80.67,,Veolia Es (Uk) Ltd,VEO001,Corporate Resources and S151,Balance Sheet,Rechargeable Works,Environmental Services
http://thanet.gov.uk/supplierspend,Thanet District Council,20/04/2015,383060,1813.42,,Veolia Es (Uk) Ltd,VEO001,Operational Services,Revenue,Cleaning & Domestic Supplies,Environmental Services
http://thanet.gov.uk/supplierspend,Thanet District Council,20/04/2015,382967,269.28,,Viridor Waste Management Ltd,VIR003,Community Services,Revenue,Private Contractors,Environmental Services
http://thanet.gov.uk/supplierspend,Thanet District Council,20/04/2015,383244,294.66,,Viridor Waste Management Ltd,VIR003,Community Services,Revenue,Cleaning & Domestic Supplies,Environmental Services
http://thanet.gov.uk/supplierspend,Thanet District Council,20/04/2015,383193,2000,,Westgate Community Centre Ass.,WES015,Community Services,Revenue,Grants & Subscriptions,Facilities And Mangement Serv
http://thanet.gov.uk/supplierspend,Thanet District Council,20/04/2015,382756,2000,,Westgate On Sea Lighting&Improvement,WES048,Community Services,Revenue,Grants & Subscriptions,Grants
http://thanet.gov.uk/supplierspend,Thanet District Council,20/04/2015,383111,10000,,Your Leisure Kent Limited,YOU016,Operational Services,Revenue,Services,Arts And Leisure Services
http://thanet.gov.uk/supplierspend,Thanet District Council,21/04/2015,383414,1198.9,,Co-Operative Bank Paypoint,COO018,Corporate Resources and S151,Revenue,Services,Financial Services
http://thanet.gov.uk/supplierspend,Thanet District Council,21/04/2015,383414,399.64,,Co-Operative Bank Paypoint,COO018,Community Services,Revenue,Services,Financial Services
http://thanet.gov.uk/supplierspend,Thanet District Council,21/04/2015,383407,261.34,,Nat West Bank,NWE001,Corporate Resources and S151,Revenue,Services,Various Categories
http://thanet.gov.uk/supplierspend,Thanet District Council,21/04/2015,383391,147845.48,,Public Works Loan Board,PWL001,Corporate Resources and S151,Balance Sheet,Debit Interest And Expenses,Investments And Loans
http://thanet.gov.uk/supplierspend,Thanet District Council,21/04/2015,383404,721.14,,Santander,SAN017,Corporate Resources and S151,Revenue,Services,Various Categories
http://thanet.gov.uk/supplierspend,Thanet District Council,21/04/2015,383405,1268.83,,Santander,SAN017,Corporate Resources and S151,Revenue,Services,Various Categories
http://thanet.gov.uk/supplierspend,Thanet District Council,21/04/2015,383405,422.95,,Santander,SAN017,Community Services,Revenue,Services,Various Categories
http://thanet.gov.uk/supplierspend,Thanet District Council,21/04/2015,383398,1333956,,Secretary Of State,SEC003,Corporate Resources and S151,Balance Sheet,Collection Fund - Preceptors,Government Agencies
http://thanet.gov.uk/supplierspend,Thanet District Council,21/04/2015,383409,661.38,,Worldpay Ltd,WOR008,Corporate Resources and S151,Revenue,Services,Financial Services
http://thanet.gov.uk/supplierspend,Thanet District Council,21/04/2015,383410,3383.46,,Worldpay Ltd,WOR008,Corporate Resources and S151,Revenue,Services,Financial Services
http://thanet.gov.uk/supplierspend,Thanet District Council,21/04/2015,383411,3225.79,,Worldpay Ltd,WOR008,Corporate Resources and S151,Revenue,Services,Financial Services
http://thanet.gov.uk/supplierspend,Thanet District Council,22/04/2015,383109,268.45,,Dennis Eagle Ltd,DEN005,Operational Services,Revenue,Direct Transport Costs,Vehicle Management
http://thanet.gov.uk/supplierspend,Thanet District Council,22/04/2015,383132,280.42,,Dennis Eagle Ltd,DEN005,Operational Services,Revenue,Direct Transport Costs,Vehicle Management
http://thanet.gov.uk/supplierspend,Thanet District Council,22/04/2015,383161,268.45,,Dennis Eagle Ltd,DEN005,Operational Services,Revenue,Direct Transport Costs,Vehicle Management
http://thanet.gov.uk/supplierspend,Thanet District Council,22/04/2015,383179,-233.45,,Dennis Eagle Ltd,DEN005,Operational Services,Revenue,Direct Transport Costs,Vehicle Management
http://thanet.gov.uk/supplierspend,Thanet District Council,22/04/2015,383180,241.36,,Dennis Eagle Ltd,DEN005,Operational Services,Revenue,Direct Transport Costs,Vehicle Management
http://thanet.gov.uk/supplierspend,Thanet District Council,22/04/2015,382066,770,,Gulliver'S Truck Hire Limited,GUL001,Operational Services,Revenue,Cont Hire & Operating Lease,Vehicle Management
http://thanet.gov.uk/supplierspend,Thanet District Council,22/04/2015,382256,9025.27,,Hr Go Recruitment Ltd,HRG002,Operational Services,Revenue,Agency Staff,Human Resources
http://thanet.gov.uk/supplierspend,Thanet District Council,22/04/2015,382259,1572.42,,Hr Go Recruitment Ltd,HRG002,Operational Services,Revenue,Agency Staff,Human Resources
http://thanet.gov.uk/supplierspend,Thanet District Council,22/04/2015,382260,2139.05,,Hr Go Recruitment Ltd,HRG002,Operational Services,Revenue,Agency Staff,Human Resources
http://thanet.gov.uk/supplierspend,Thanet District Council,22/04/2015,382261,534.84,,Hr Go Recruitment Ltd,HRG002,Operational Services,Revenue,Agency Staff,Human Resources
http://thanet.gov.uk/supplierspend,Thanet District Council,22/04/2015,382788,2184.09,,Hr Go Recruitment Ltd,HRG002,Operational Services,Revenue,Agency Staff,Human Resources
http://thanet.gov.uk/supplierspend,Thanet District Council,22/04/2015,382790,619.66,,Hr Go Recruitment Ltd,HRG002,Operational Services,Revenue,Agency Staff,Human Resources
http://thanet.gov.uk/supplierspend,Thanet District Council,22/04/2015,383167,604.28,,Hr Go Recruitment Ltd,HRG002,Operational Services,Revenue,Agency Staff,Human Resources
http://thanet.gov.uk/supplierspend,Thanet District Council,22/04/2015,383168,670,,Hr Go Recruitment Ltd,HRG002,Operational Services,Revenue,Agency Staff,Human Resources
http://thanet.gov.uk/supplierspend,Thanet District Council,22/04/2015,383174,1631.77,,Hr Go Recruitment Ltd,HRG002,Operational Services,Revenue,Agency Staff,Human Resources
http://thanet.gov.uk/supplierspend,Thanet District Council,22/04/2015,382206,378.61,,Invicta Canterbury,INV013,Operational Services,Revenue,Direct Transport Costs,Vehicle Management
http://thanet.gov.uk/supplierspend,Thanet District Council,22/04/2015,382778,385.76,,John Reeve (Plant Hire) Ltd,REE013,Operational Services,Revenue,"Repairs,  Alter & Mtce - Build",Vehicle Management
http://thanet.gov.uk/supplierspend,Thanet District Council,22/04/2015,382779,225.78,,John Reeve (Plant Hire) Ltd,REE013,Operational Services,Revenue,"Repairs,  Alter & Mtce - Build",Vehicle Management
http://thanet.gov.uk/supplierspend,Thanet District Council,22/04/2015,382781,1344,,John Reeve (Plant Hire) Ltd,REE013,Operational Services,Revenue,"Repairs,  Alter & Mtce - Build",Vehicle Management
http://thanet.gov.uk/supplierspend,Thanet District Council,22/04/2015,382782,4800,,John Reeve (Plant Hire) Ltd,REE013,Operational Services,Revenue,"Repairs,  Alter & Mtce - Build",Vehicle Management
http://thanet.gov.uk/supplierspend,Thanet District Council,22/04/2015,382783,600,,John Reeve (Plant Hire) Ltd,REE013,Operational Services,Revenue,"Repairs,  Alter & Mtce - Build",Vehicle Management
http://thanet.gov.uk/supplierspend,Thanet District Council,22/04/2015,383203,751.13,,Lister Wilder Limited,LIS002,Operational Services,Revenue,"Equip, Furniture And Materials",Horticultural
http://thanet.gov.uk/supplierspend,Thanet District Council,22/04/2015,383204,771.92,,Lister Wilder Limited,LIS002,Operational Services,Revenue,"Equip, Furniture And Materials",Horticultural
http://thanet.gov.uk/supplierspend,Thanet District Council,22/04/2015,383033,241.65,,Ppg Arch Coatings Uk Ltd,PPG001,Community Services,Revenue,"Equip, Furniture And Materials",Building Construction Material
http://thanet.gov.uk/supplierspend,Thanet District Council,22/04/2015,383451,1000,,Primesight Limited,PRI033,Corporate Resources and S151,Revenue,Miscellaneous Expenses,Facilities And Mangement Serv
http://thanet.gov.uk/supplierspend,Thanet District Council,22/04/2015,383139,476.55,,Sparshatts Of Kent Ltd,SPA008,Operational Services,Revenue,Direct Transport Costs,Vehicle Management
http://thanet.gov.uk/supplierspend,Thanet District Council,22/04/2015,383140,732.5,,Sparshatts Of Kent Ltd,SPA008,Operational Services,Revenue,Direct Transport Costs,Vehicle Management
http://thanet.gov.uk/supplierspend,Thanet District Council,22/04/2015,383134,503.68,,W G Burbridge,BUR016,Operational Services,Revenue,"Repairs,  Alter & Mtce - Build",Building Construction Material
http://thanet.gov.uk/supplierspend,Thanet District Council,22/04/2015,383137,1618.31,,W G Burbridge,BUR016,Operational Services,Revenue,"Repairs,  Alter & Mtce - Build",Building Construction Material
http://thanet.gov.uk/supplierspend,Thanet District Council,24/04/2015,382044,437.5,,Access Matters Uk,ACC008,Corporate Resources and S151,Balance Sheet,Investment Property For Lease,Consultancy
http://thanet.gov.uk/supplierspend,Thanet District Council,24/04/2015,382067,418.5,,Beckwith Consulting Limited,BEC001,Corporate Resources and S151,Revenue,Training,Human Resources
http://thanet.gov.uk/supplierspend,Thanet District Council,24/04/2015,382094,221.55,,Ovenden Plant Hire Ltd,OVE002,Operational Services,Revenue,Direct Transport Costs,Vehicle Management
http://thanet.gov.uk/supplierspend,Thanet District Council,24/04/2015,382181,450,,Thanet Nursery Project Limited,TNU001,Community Services,Revenue,Rents,Facilities And Mangement Serv
http://thanet.gov.uk/supplierspend,Thanet District Council,27/04/2015,PC6684,224.88,,3D Displays,N/A,Community Services,Revenue,"Equip, Furniture And Materials",Facilities And Management Serv
http://thanet.gov.uk/supplierspend,Thanet District Council,27/04/2015,PC6744,58.19,,Acces Hotel,N/A,Operational Services,Revenue,Expenses,Human Resources
http://thanet.gov.uk/supplierspend,Thanet District Council,27/04/2015,PC6732,51.6,,Active Life Ltd,N/A,Community Services,Revenue,Expenses,Human Resources
http://thanet.gov.uk/supplierspend,Thanet District Council,27/04/2015,PC6682,54,9,Amazon,N/A,East Kent Shared Services,Revenue,"Equip, Furniture And Materials",Stationery
http://thanet.gov.uk/supplierspend,Thanet District Council,27/04/2015,PC6715,1.44,,Amazon,N/A,East Kent Shared Services,Revenue,Communications & Computing,Stationery
http://thanet.gov.uk/supplierspend,Thanet District Council,27/04/2015,PC6692,0.75,,Amazon - Kit4Security,N/A,Corporate Resources and S151,Revenue,Miscellaneous Expenses,Stationery
http://thanet.gov.uk/supplierspend,Thanet District Council,27/04/2015,PC6693,2.9,,Amazon - Kit4Security,N/A,Corporate Resources and S151,Revenue,Miscellaneous Expenses,Stationery
http://thanet.gov.uk/supplierspend,Thanet District Council,27/04/2015,PC6743,2.99,,Amazon EU,N/A,East Kent Shared Services,Revenue,"Equip, Furniture And Materials",Stationery
http://thanet.gov.uk/supplierspend,Thanet District Council,27/04/2015,PC6646,2.12,,Amazon Marketplace,N/A,Community Services,Revenue,"Print, Stat And Gen Off Exps",Stationery
http://thanet.gov.uk/supplierspend,Thanet District Council,27/04/2015,PC6728,13.46,,Amazon Marketplace,N/A,East Kent Shared Services,Revenue,Communications & Computing,Stationery
http://thanet.gov.uk/supplierspend,Thanet District Council,27/04/2015,PC6638,4.65,0.78,Amazon UK Marketplace,N/A,Operational Services,Revenue,"Equip, Furniture And Materials",Stationery
http://thanet.gov.uk/supplierspend,Thanet District Council,27/04/2015,PC6629,100.64,,Amazon UK Retail,N/A,East Kent Shared Services,Revenue,"Equip, Furniture And Materials",Stationery
http://thanet.gov.uk/supplierspend,Thanet District Council,27/04/2015,PC6640,27.89,,Amazon UK Retail,N/A,East Kent Shared Services,Revenue,"Print, Stat And Gen Off Exps",Stationery
http://thanet.gov.uk/supplierspend,Thanet District Council,27/04/2015,PC6690,28.95,4.83,Argos,N/A,Operational Services,Revenue,Miscellaneous Expenses,Facilities And Management Serv
http://thanet.gov.uk/supplierspend,Thanet District Council,27/04/2015,PC6650,7.12,0.7,Asda,N/A,East Kent Shared Services,Revenue,Catering,Catering
http://thanet.gov.uk/supplierspend,Thanet District Council,27/04/2015,PC6688,54.43,,Booker Ltd,N/A,Community Services,Revenue,Catering,Catering
http://thanet.gov.uk/supplierspend,Thanet District Council,27/04/2015,PC6689,35.15,,Booker Ltd,N/A,Community Services,Revenue,"Equip, Furniture And Materials",Catering
http://thanet.gov.uk/supplierspend,Thanet District Council,27/04/2015,PC6724,40.52,,Booker Ltd,N/A,Operational Services,Revenue,Catering,Catering
http://thanet.gov.uk/supplierspend,Thanet District Council,27/04/2015,PC6733,6.38,,Booker Ltd,N/A,Operational Services,Revenue,Catering,Catering
http://thanet.gov.uk/supplierspend,Thanet District Council,27/04/2015,PC6734,3.18,,Booker Ltd,N/A,Community Services,Revenue,Catering,Catering
http://thanet.gov.uk/supplierspend,Thanet District Council,27/04/2015,PC6735,15.46,,Booker Ltd,N/A,Community Services,Revenue,Catering,Catering
http://thanet.gov.uk/supplierspend,Thanet District Council,27/04/2015,PC6736,24.17,,Booker Ltd,N/A,Community Services,Revenue,Catering,Catering
http://thanet.gov.uk/supplierspend,Thanet District Council,27/04/2015,PC6765,16.21,,Boots,N/A,Chief Executive,Revenue,Catering,Healthcare
http://thanet.gov.uk/supplierspend,Thanet District Council,27/04/2015,PC6699,13.6,2.27,Botany Bay Hotel,N/A,Operational Services,Revenue,Catering,Human Resources
http://thanet.gov.uk/supplierspend,Thanet District Council,27/04/2015,PC6708,128.9,,Cartridgesave.Co.Uk,N/A,Operational Services,Revenue,"Equip, Furniture And Materials",Stationery
http://thanet.gov.uk/supplierspend,Thanet District Council,27/04/2015,PC6703,6.67,,Chapel Down,N/A,Community Services,Revenue,"Equip, Furniture And Materials",Catering
http://thanet.gov.uk/supplierspend,Thanet District Council,27/04/2015,PC6772,66.67,,Comfort Inn,N/A,Community Services,Revenue,Rents,Human Resources
http://thanet.gov.uk/supplierspend,Thanet District Council,27/04/2015,PC6706,17.07,,Displaysense.Co.Uk,N/A,Operational Services,Revenue,"Equip, Furniture And Materials",Facilities And Management Serv
http://thanet.gov.uk/supplierspend,Thanet District Council,27/04/2015,PC6723,69.05,,Dropbox,N/A,Community Services,Revenue,Communications & Computing,ICT
http://thanet.gov.uk/supplierspend,Thanet District Council,27/04/2015,PC6660,142.5,,DVLA,N/A,Community Services,Revenue,Direct Transport Costs,Various Cats - Public Sector
http://thanet.gov.uk/supplierspend,Thanet District Council,27/04/2015,PC6672,227.5,,DVLA,N/A,Operational Services,Revenue,Direct Transport Costs,Various Cats - Public Sector
http://thanet.gov.uk/supplierspend,Thanet District Council,27/04/2015,PC6673,227.5,,DVLA,N/A,Operational Services,Revenue,Direct Transport Costs,Various Cats - Public Sector
http://thanet.gov.uk/supplierspend,Thanet District Council,27/04/2015,PC6674,227.5,,DVLA,N/A,Operational Services,Revenue,Direct Transport Costs,Various Cats - Public Sector
http://thanet.gov.uk/supplierspend,Thanet District Council,27/04/2015,PC6702,227.5,,DVLA,N/A,Operational Services,Revenue,Direct Transport Costs,Various Cats - Public Sector
http://thanet.gov.uk/supplierspend,Thanet District Council,27/04/2015,PC6778,48.64,,Eastern Storage,N/A,Operational Services,Revenue,"Print, Stat And Gen Off Exps",Facilities And Management Serv
http://thanet.gov.uk/supplierspend,Thanet District Council,27/04/2015,PC6718,25.41,,Elepos,N/A,East Kent Shared Services,Revenue,"Equip, Furniture And Materials",Stationery
http://thanet.gov.uk/supplierspend,Thanet District Council,27/04/2015,PC6720,60,,Eurotunnel,N/A,Operational Services,Revenue,Public Transport,Human Resources
http://thanet.gov.uk/supplierspend,Thanet District Council,27/04/2015,PC6721,22.48,,Food Safety Direct,N/A,Community Services,Revenue,"Clothes, Uniforms & Laundry",Catering
http://thanet.gov.uk/supplierspend,Thanet District Council,27/04/2015,PC6713,24.5,,Greggs,N/A,Corporate Resources and S151,Revenue,Catering,Catering
http://thanet.gov.uk/supplierspend,Thanet District Council,27/04/2015,PC6727,24.5,,Greggs ,N/A,Corporate Resources and S151,Revenue,Catering,Catering
http://thanet.gov.uk/supplierspend,Thanet District Council,27/04/2015,PC6651,681,,HM Courts,N/A,East Kent Shared Services,Revenue,Services,Various Cats - Public Sector
http://thanet.gov.uk/supplierspend,Thanet District Council,27/04/2015,PC6652,15,,HM Courts,N/A,East Kent Shared Services,Revenue,Services,Various Cats - Public Sector
http://thanet.gov.uk/supplierspend,Thanet District Council,27/04/2015,PC6653,30,,HM Courts,N/A,East Kent Shared Services,Revenue,Services,Various Cats - Public Sector
http://thanet.gov.uk/supplierspend,Thanet District Council,27/04/2015,PC6654,18,,HM Courts,N/A,East Kent Shared Services,Revenue,Services,Various Cats - Public Sector
http://thanet.gov.uk/supplierspend,Thanet District Council,27/04/2015,PC6657,1686,,HM Courts,N/A,East Kent Shared Services,Revenue,Services,Various Cats - Public Sector
http://thanet.gov.uk/supplierspend,Thanet District Council,27/04/2015,PC6658,765,,HM Courts,N/A,East Kent Shared Services,Revenue,Services,Various Cats - Public Sector
http://thanet.gov.uk/supplierspend,Thanet District Council,27/04/2015,PC6730,100,,HM Courts,N/A,Operational Services,Revenue,Services,Various Cats - Public Sector
http://thanet.gov.uk/supplierspend,Thanet District Council,27/04/2015,PC6777,17.99,3,Homebasics,N/A,Operational Services,Revenue,"Print, Stat And Gen Off Exps",Facilities And Management Serv
http://thanet.gov.uk/supplierspend,Thanet District Council,27/04/2015,PC6644,12.2,,London & South Eastern,N/A,Operational Services,Revenue,Public Transport,Human Resources
http://thanet.gov.uk/supplierspend,Thanet District Council,27/04/2015,PC6666,76.9,,London & South Eastern,N/A,Chief Executive,Revenue,Public Transport,Human Resources
http://thanet.gov.uk/supplierspend,Thanet District Council,27/04/2015,PC6704,64.8,,London & South Eastern,N/A,Corporate Resources and S151,Revenue,Expenses,Human Resources
http://thanet.gov.uk/supplierspend,Thanet District Council,27/04/2015,PC6694,405.5,67.59,Marks & Spencer,N/A,Operational Services,Revenue,"Clothes, Uniforms & Laundry",Facilities And Management Serv
http://thanet.gov.uk/supplierspend,Thanet District Council,27/04/2015,PC6696,7.01,,Marks & Spencer,N/A,Operational Services,Revenue,Catering,Facilities And Management Serv
http://thanet.gov.uk/supplierspend,Thanet District Council,27/04/2015,PC6710,29,4.84,Marlec Marine,N/A,Community Services,Revenue,"Equip, Furniture And Materials",Maritime Services
http://thanet.gov.uk/supplierspend,Thanet District Council,27/04/2015,PC6737,9.9,1.65,Marlec Marine,N/A,Community Services,Revenue,"Equip, Furniture And Materials",Maritime Services
http://thanet.gov.uk/supplierspend,Thanet District Council,27/04/2015,PC6697,60,,Money Claims Online,N/A,Community Services,Revenue,Services,Various Cats - Public Sector
http://thanet.gov.uk/supplierspend,Thanet District Council,27/04/2015,PC6698,35,,Money Claims Online,N/A,Community Services,Revenue,Services,Various Cats - Public Sector
http://thanet.gov.uk/supplierspend,Thanet District Council,27/04/2015,PC6655,14,2.34,Occasions Of Herne Bay,N/A,East Kent Shared Services,Revenue,Catering,Facilities And Management Serv
http://thanet.gov.uk/supplierspend,Thanet District Council,27/04/2015,PC6714,27.75,,Passport Office,N/A,Community Services,Revenue,Services,Various Cats - Public Sector
http://thanet.gov.uk/supplierspend,Thanet District Council,27/04/2015,PC6686,99,,Paypal *Adjacentdig Np,N/A,Community Services,Revenue,Grants & Subscriptions,Facilities And Management Serv
http://thanet.gov.uk/supplierspend,Thanet District Council,27/04/2015,PC6759,73.38,,Paypal *Librexeduca,N/A,Operational Services,Revenue,"Equip, Furniture And Materials",Facilities And Management Serv
http://thanet.gov.uk/supplierspend,Thanet District Council,27/04/2015,PC6685,110,,Possession Claims Online,N/A,Community Services,Revenue,Services,Various Cats - Public Sector
http://thanet.gov.uk/supplierspend,Thanet District Council,27/04/2015,PC6716,110,,Possession Claims Online,N/A,Community Services,Revenue,Services,Various Cats - Public Sector
http://thanet.gov.uk/supplierspend,Thanet District Council,27/04/2015,PC6717,110,,Possession Claims Online,N/A,Community Services,Revenue,Services,Various Cats - Public Sector
http://thanet.gov.uk/supplierspend,Thanet District Council,27/04/2015,PC6739,250,,Possession Claims Online,N/A,Community Services,Revenue,Services,Various Cats - Public Sector
http://thanet.gov.uk/supplierspend,Thanet District Council,27/04/2015,PC6740,250,,Possession Claims Online,N/A,Community Services,Revenue,Services,Various Cats - Public Sector
http://thanet.gov.uk/supplierspend,Thanet District Council,27/04/2015,PC6741,250,,Possession Claims Online,N/A,Community Services,Revenue,Services,Various Cats - Public Sector
http://thanet.gov.uk/supplierspend,Thanet District Council,27/04/2015,PC6742,250,,Possession Claims Online,N/A,Community Services,Revenue,Services,Various Cats - Public Sector
http://thanet.gov.uk/supplierspend,Thanet District Council,27/04/2015,PC6683,358.6,,Royal Mail,N/A,Community Services,Revenue,"Equip, Furniture And Materials",Mail Services
http://thanet.gov.uk/supplierspend,Thanet District Council,27/04/2015,PC6665,14.99,2.5,Standfast,N/A,Operational Services,Revenue,"Equip, Furniture And Materials",Facilities And Management Serv
http://thanet.gov.uk/supplierspend,Thanet District Council,27/04/2015,PC6687,17.33,,Standfast,N/A,Community Services,Revenue,"Equip, Furniture And Materials",Facilities And Management Serv
http://thanet.gov.uk/supplierspend,Thanet District Council,27/04/2015,PC6731,6.33,,Standfast,N/A,Community Services,Revenue,"Equip, Furniture And Materials",Facilities And Management Serv
http://thanet.gov.uk/supplierspend,Thanet District Council,27/04/2015,PC6750,2,,Tesco,N/A,East Kent Shared Services,Revenue,Catering,Catering
http://thanet.gov.uk/supplierspend,Thanet District Council,27/04/2015,PC6725,25.83,,Tesco Extra Broadstairs,N/A,Community Services,Revenue,"Clothes, Uniforms & Laundry",Catering
http://thanet.gov.uk/supplierspend,Thanet District Council,27/04/2015,PC6676,50,,Thanet County Court,N/A,Operational Services,Revenue,Services,Various Cats - Public Sector
http://thanet.gov.uk/supplierspend,Thanet District Council,27/04/2015,PC6677,50,,Thanet County Court,N/A,Community Services,Revenue,Services,Various Cats - Public Sector
http://thanet.gov.uk/supplierspend,Thanet District Council,27/04/2015,PC6738,280,,Thanet County Court,N/A,Community Services,Revenue,Services,Various Cats - Public Sector
http://thanet.gov.uk/supplierspend,Thanet District Council,27/04/2015,PC6695,61.67,,The Crown Hotel Harrogate,N/A,Operational Services,Revenue,"Equip, Furniture And Materials",Human Resources
http://thanet.gov.uk/supplierspend,Thanet District Council,27/04/2015,PC6661,6.02,,Toolstation,N/A,Community Services,Revenue,"Equip, Furniture And Materials",Building Construction Materials
http://thanet.gov.uk/supplierspend,Thanet District Council,27/04/2015,PC6662,25.18,,Toolstation,N/A,Community Services,Revenue,"Equip, Furniture And Materials",Building Construction Materials
http://thanet.gov.uk/supplierspend,Thanet District Council,27/04/2015,PC6663,21.71,,Toolstation,N/A,Community Services,Revenue,"Equip, Furniture And Materials",Building Construction Materials
http://thanet.gov.uk/supplierspend,Thanet District Council,27/04/2015,PC6667,11.5,,Transport For London,N/A,Chief Executive,Revenue,Public Transport,Human Resources
http://thanet.gov.uk/supplierspend,Thanet District Council,27/04/2015,PC6779,166.45,,Trews,N/A,Operational Services,Revenue,"Clothes, Uniforms & Laundry",Clothing
http://thanet.gov.uk/supplierspend,Thanet District Council,27/04/2015,PC6729,11,,Tunbridge Wells Registry Office,N/A,East Kent Shared Services,Revenue,Services,Various Cats - Public Sector
http://thanet.gov.uk/supplierspend,Thanet District Council,27/04/2015,PC6707,20.92,,Ukpos.Com,N/A,Operational Services,Revenue,"Equip, Furniture And Materials",Facilities And Management Serv
http://thanet.gov.uk/supplierspend,Thanet District Council,27/04/2015,PC6670,165.5,,Virgin Trains,N/A,East Kent Shared Services,Revenue,Public Transport,Human Resources
http://thanet.gov.uk/supplierspend,Thanet District Council,27/04/2015,PC6709,78.5,,Virgin Trains,N/A,East Kent Shared Services,Revenue,Public Transport,Human Resources
http://thanet.gov.uk/supplierspend,Thanet District Council,27/04/2015,PC6769,78.5,,Virgin Trains,N/A,East Kent Shared Services,Revenue,Public Transport,Human Resources
http://thanet.gov.uk/supplierspend,Thanet District Council,27/04/2015,PC6770,-43,,Virgin Trains,N/A,East Kent Shared Services,Revenue,Public Transport,Human Resources
http://thanet.gov.uk/supplierspend,Thanet District Council,27/04/2015,PC6719,5.9,0.99,Waitrose,N/A,Operational Services,Revenue,Public Transport,Catering
http://thanet.gov.uk/supplierspend,Thanet District Council,27/04/2015,PC6649,78.9,,Webtis,N/A,Community Services,Revenue,Public Transport,Human Resources
http://thanet.gov.uk/supplierspend,Thanet District Council,27/04/2015,PC6664,63.4,,Webtis,N/A,Corporate Resources and S151,Revenue,Public Transport,Human Resources
http://thanet.gov.uk/supplierspend,Thanet District Council,27/04/2015,PC6671,43.2,,Webtis,N/A,Corporate Resources and S151,Revenue,Public Transport,Human Resources
http://thanet.gov.uk/supplierspend,Thanet District Council,27/04/2015,PC6691,14.2,,Webtis,N/A,Operational Services,Revenue,Public Transport,Human Resources
http://thanet.gov.uk/supplierspend,Thanet District Council,27/04/2015,PC6722,66.1,,Webtis,N/A,Corporate Resources and S151,Revenue,Public Transport,Human Resources
http://thanet.gov.uk/supplierspend,Thanet District Council,27/04/2015,PC6776,15,2.5,Wilko Retail Limited,N/A,Operational Services,Revenue,"Print, Stat And Gen Off Exps",Facilities And Management Serv
http://thanet.gov.uk/supplierspend,Thanet District Council,27/04/2015,PC6668,1.49,,WM Morrison PLC,N/A,Operational Services,Revenue,Catering,Catering
http://thanet.gov.uk/supplierspend,Thanet District Council,27/04/2015,PC6669,2.49,,WM Morrison PLC,N/A,Operational Services,Revenue,Catering,Catering
http://thanet.gov.uk/supplierspend,Thanet District Council,27/04/2015,PC6681,5,,WM Morrison PLC,N/A,East Kent Shared Services,Revenue,Catering,Catering
http://thanet.gov.uk/supplierspend,Thanet District Council,27/04/2015,PC6711,4.99,,WM Morrison PLC,N/A,Corporate Resources and S151,Revenue,Catering,Catering
http://thanet.gov.uk/supplierspend,Thanet District Council,27/04/2015,PC6712,1.25,,WM Morrison PLC,N/A,Corporate Resources and S151,Revenue,Catering,Catering
http://thanet.gov.uk/supplierspend,Thanet District Council,27/04/2015,PC6726,2.66,,WM Morrison PLC,N/A,Corporate Resources and S151,Revenue,Catering,Catering
http://thanet.gov.uk/supplierspend,Thanet District Council,28/04/2015,383226,362.8,,1415 Limited,141001,Operational Services,Revenue,"Equip, Furniture And Materials",Facilities And Mangement Serv
http://thanet.gov.uk/supplierspend,Thanet District Council,28/04/2015,383608,25000,,A S Enterprises & Co Ltd,ASE002,Community Services,Revenue,Grants & Subscriptions,Human Resources
http://thanet.gov.uk/supplierspend,Thanet District Council,28/04/2015,383184,2700,,A2b Technology (Uk) Ltd,A2B001,Community Services,Revenue,Communications & Computing,ICT
http://thanet.gov.uk/supplierspend,Thanet District Council,28/04/2015,383508,5175,,A2b Technology (Uk) Ltd,A2B001,Community Services,Revenue,Communications & Computing,ICT
http://thanet.gov.uk/supplierspend,Thanet District Council,28/04/2015,383674,475.54,,Allstar Business Solutions Ltd,ALL038,Operational Services,Revenue,Direct Transport Costs,Vehicle Management
http://thanet.gov.uk/supplierspend,Thanet District Council,28/04/2015,383675,13.9,,Allstar Business Solutions Ltd,ALL038,Chief Executive,Revenue,Direct Transport Costs,Vehicle Management
http://thanet.gov.uk/supplierspend,Thanet District Council,28/04/2015,383675,264.1,,Allstar Business Solutions Ltd,ALL038,Operational Services,Revenue,Direct Transport Costs,Vehicle Management
http://thanet.gov.uk/supplierspend,Thanet District Council,28/04/2015,383448,1654.23,,Amberol Limited,AMB002,Corporate Resources and S151,Balance Sheet,Plant And Equipment,Environmental Services
http://thanet.gov.uk/supplierspend,Thanet District Council,28/04/2015,382210,8550,,Ass For Public Service Excellence,ASS013,Operational Services,Revenue,Services,Human Resources
http://thanet.gov.uk/supplierspend,Thanet District Council,28/04/2015,383473,700,,Aston Walker,AST008,Community Services,Revenue,Services,Cemetery And Crematorium
http://thanet.gov.uk/supplierspend,Thanet District Council,28/04/2015,383474,605,,Aston Walker,AST008,Community Services,Revenue,Services,Cemetery And Crematorium
http://thanet.gov.uk/supplierspend,Thanet District Council,28/04/2015,382437,9162.65,,Ats Euromaster Ltd,ATS002,Operational Services,Revenue,Direct Transport Costs,Vehicle Management
http://thanet.gov.uk/supplierspend,Thanet District Council,28/04/2015,383617,2678,,Bramling Construction Ltd,BRA020,Corporate Resources and S151,Balance Sheet,Capital Exp-Non Council Assets,Grants
http://thanet.gov.uk/supplierspend,Thanet District Council,28/04/2015,382179,1804.5,,Bridge Security Cctv Ltd,BRI039,Community Services,Revenue,"Equip, Furniture And Materials",Facilities And Mangement Serv
http://thanet.gov.uk/supplierspend,Thanet District Council,28/04/2015,383042,1600,,Canterbury Scaffolding,CAN023,Corporate Resources and S151,Balance Sheet,Council Dwellings,Construction-Repair And Maint
http://thanet.gov.uk/supplierspend,Thanet District Council,28/04/2015,382997,3750,,Civica Uk Ltd,CIV003,East Kent Shared Services,Revenue,Communications & Computing,ICT
http://thanet.gov.uk/supplierspend,Thanet District Council,28/04/2015,383175,215.36,,Computerland Uk Limited,COM045,East Kent Shared Services,Revenue,Communications & Computing,ICT
http://thanet.gov.uk/supplierspend,Thanet District Council,28/04/2015,383189,564.68,,Computerland Uk Limited,COM045,East Kent Shared Services,Revenue,Communications & Computing,ICT
http://thanet.gov.uk/supplierspend,Thanet District Council,28/04/2015,383612,43767.37,,D C L G,DCL002,Corporate Resources and S151,Balance Sheet,Capital Receipts Reserve,Government Agencies
http://thanet.gov.uk/supplierspend,Thanet District Council,28/04/2015,383658,1250,,David Forsdick Qc,FOR020,Corporate Resources and S151,Balance Sheet,Other Land And Buildings-Hra,Legal Services
http://thanet.gov.uk/supplierspend,Thanet District Council,28/04/2015,383659,750,,David Forsdick Qc,FOR020,Corporate Resources and S151,Balance Sheet,Other Land And Buildings-Hra,Legal Services
http://thanet.gov.uk/supplierspend,Thanet District Council,28/04/2015,383615,2400,,Dolphin Lifts Kent,DOL003,Corporate Resources and S151,Balance Sheet,Capital Exp-Non Council Assets,Grants
http://thanet.gov.uk/supplierspend,Thanet District Council,28/04/2015,383494,1850,,Dover District Council,DOV001,Corporate Resources and S151,Revenue,Services,Various Cats-Public Sector
http://thanet.gov.uk/supplierspend,Thanet District Council,28/04/2015,382975,2225,,Dr Alexander Marshall,MAR100,Operational Services,Revenue,Services,Cemetery And Crematorium
http://thanet.gov.uk/supplierspend,Thanet District Council,28/04/2015,382427,2150,,Dr R K Chhabra,CHH001,Operational Services,Revenue,Services,Cemetery And Crematorium
http://thanet.gov.uk/supplierspend,Thanet District Council,28/04/2015,382134,1689,,E Saunders Margate Ltd,SAU001,Corporate Resources and S151,Balance Sheet,Repairs And Mtce Holding A/C,Construction-Repair And Maint
http://thanet.gov.uk/supplierspend,Thanet District Council,28/04/2015,383115,788.52,,E Saunders Margate Ltd,SAU001,Corporate Resources and S151,Balance Sheet,Repairs And Mtce Holding A/C,Construction-Repair And Maint
http://thanet.gov.uk/supplierspend,Thanet District Council,28/04/2015,382753,7.95,,East Kent Components Ltd,EKC006,Operational Services,Revenue,Direct Transport Costs,Vehicle Management
http://thanet.gov.uk/supplierspend,Thanet District Council,28/04/2015,382753,682.05,,East Kent Components Ltd,EKC006,Operational Services,Revenue,"Equip, Furniture And Materials",Vehicle Management
http://thanet.gov.uk/supplierspend,Thanet District Council,28/04/2015,382416,916.59,,Egbert H Taylor & Company Ltd,TAY005,Corporate Resources and S151,Balance Sheet,Plant And Equipment,Environmental Services
http://thanet.gov.uk/supplierspend,Thanet District Council,28/04/2015,383495,3341.2,,Egbert H Taylor & Company Ltd,TAY005,Operational Services,Revenue,"Equip, Furniture And Materials",Environmental Services
http://thanet.gov.uk/supplierspend,Thanet District Council,28/04/2015,383572,2490,,Environment Agency,ENV001,Operational Services,Revenue,Services,Environmental Services
http://thanet.gov.uk/supplierspend,Thanet District Council,28/04/2015,383614,6563,,Evermech Services Ltd,EVE011,Corporate Resources and S151,Balance Sheet,Capital Exp-Non Council Assets,Grants
http://thanet.gov.uk/supplierspend,Thanet District Council,28/04/2015,383613,3217.6,,Family Mosaic Housing,FAM001,Corporate Resources and S151,Balance Sheet,Capital Exp-Non Council Assets,Housing Management
http://thanet.gov.uk/supplierspend,Thanet District Council,28/04/2015,382992,460.74,,Frandham Boarding Kennels,FRA010,Operational Services,Revenue,Services,Environmental Services
http://thanet.gov.uk/supplierspend,Thanet District Council,28/04/2015,383525,935,,Freight Transport Association,FRE007,Operational Services,Revenue,Grants & Subscriptions,Human Resources
http://thanet.gov.uk/supplierspend,Thanet District Council,28/04/2015,382799,15450,,Gem Mc Limited,GEM009,Corporate Resources and S151,Balance Sheet,Plant And Equipment,Arts And Leisure Services
http://thanet.gov.uk/supplierspend,Thanet District Council,28/04/2015,383609,2000,,Gordon Road Area Street Scheme,GOR003,Community Services,Revenue,Grants & Subscriptions,Grants
http://thanet.gov.uk/supplierspend,Thanet District Council,28/04/2015,382371,770,,Gulliver'S Truck Hire Limited,GUL001,Operational Services,Revenue,Cont Hire & Operating Lease,Vehicle Management
http://thanet.gov.uk/supplierspend,Thanet District Council,28/04/2015,383043,770,,Gulliver'S Truck Hire Limited,GUL001,Operational Services,Revenue,Cont Hire & Operating Lease,Vehicle Management
http://thanet.gov.uk/supplierspend,Thanet District Council,28/04/2015,382349,945,,Haymarket Media Group Ltd,HAY018,Community Services,Revenue,"Print, Stat And Gen Off Exps",Financial Services
http://thanet.gov.uk/supplierspend,Thanet District Council,28/04/2015,383214,897.3,,Hi Way Services Ltd,HIW002,Operational Services,Revenue,"Repairs,  Alter & Mtce - Build",Highway Equipment And Material
http://thanet.gov.uk/supplierspend,Thanet District Council,28/04/2015,383215,650,,Hi Way Services Ltd,HIW002,Operational Services,Revenue,"Repairs,  Alter & Mtce - Build",Highway Equipment And Material
http://thanet.gov.uk/supplierspend,Thanet District Council,28/04/2015,382378,1014.95,,Hilton Cabinet Co Ltd,HIL002,Operational Services,Revenue,"Equip, Furniture And Materials",Furniture And Soft Furnishings
http://thanet.gov.uk/supplierspend,Thanet District Council,28/04/2015,382257,995.48,,Hr Go Recruitment Ltd,HRG002,Operational Services,Revenue,Agency Staff,Human Resources
http://thanet.gov.uk/supplierspend,Thanet District Council,28/04/2015,382263,3943.81,,Hr Go Recruitment Ltd,HRG002,Operational Services,Revenue,Agency Staff,Human Resources
http://thanet.gov.uk/supplierspend,Thanet District Council,28/04/2015,382794,230.23,,Hr Go Recruitment Ltd,HRG002,Community Services,Revenue,Agency Staff,Human Resources
http://thanet.gov.uk/supplierspend,Thanet District Council,28/04/2015,383173,672,,Hr Go Recruitment Ltd,HRG002,Operational Services,Revenue,Agency Staff,Human Resources
http://thanet.gov.uk/supplierspend,Thanet District Council,28/04/2015,383672,372.68,,Hr Go Recruitment Ltd,HRG002,Operational Services,Revenue,Agency Staff,Human Resources
http://thanet.gov.uk/supplierspend,Thanet District Council,28/04/2015,383499,320,,Hse Training Ltd,HSE002,Operational Services,Revenue,Training,Human Resources
http://thanet.gov.uk/supplierspend,Thanet District Council,28/04/2015,382351,37211.59,,Idox Software  Limited,IDO001,Corporate Resources and S151,Revenue,"Print, Stat And Gen Off Exps",ICT
http://thanet.gov.uk/supplierspend,Thanet District Council,28/04/2015,383026,310,,Institute Of Cemetery & Crem Mang,INS015,Operational Services,Revenue,Grants & Subscriptions,Cemetery And Crematorium
http://thanet.gov.uk/supplierspend,Thanet District Council,28/04/2015,382998,270.67,,Kendall Cars Ltd,KEN041,Operational Services,Revenue,Cont Hire & Operating Lease,Vehicle Management
http://thanet.gov.uk/supplierspend,Thanet District Council,28/04/2015,382999,270.67,,Kendall Cars Ltd,KEN041,Operational Services,Revenue,Cont Hire & Operating Lease,Vehicle Management
http://thanet.gov.uk/supplierspend,Thanet District Council,28/04/2015,382802,37132.74,,Kent County Council,KCC002,Corporate Resources and S151,Revenue,Communications & Computing,Various Cats-Public Sector
http://thanet.gov.uk/supplierspend,Thanet District Council,28/04/2015,382802,20957.55,,Kent County Council,KCC002,East Kent Shared Services,Revenue,Communications & Computing,Various Cats-Public Sector
http://thanet.gov.uk/supplierspend,Thanet District Council,28/04/2015,383085,929.8,,Kent County Council,KCC002,Operational Services,Revenue,"Repairs,  Alter & Mtce - Build",Various Cats-Public Sector
http://thanet.gov.uk/supplierspend,Thanet District Council,28/04/2015,383501,5000,,Kent County Council,KCC002,Community Services,Revenue,Rents,Various Cats-Public Sector
http://thanet.gov.uk/supplierspend,Thanet District Council,28/04/2015,383529,4263,,Kent County Council,KCC002,Community Services,Revenue,Services,Various Cats-Public Sector
http://thanet.gov.uk/supplierspend,Thanet District Council,28/04/2015,382828,27386.58,,Kent County Council (Kcs),KCC003,Operational Services,Revenue,Direct Transport Costs,Facilities And Mangement Serv
http://thanet.gov.uk/supplierspend,Thanet District Council,28/04/2015,382830,2329.63,,Kent County Council (Kcs),KCC003,Operational Services,Revenue,Direct Transport Costs,Facilities And Mangement Serv
http://thanet.gov.uk/supplierspend,Thanet District Council,28/04/2015,383013,2154.23,,Kent County Council (Kcs),KCC003,Operational Services,Revenue,Energy Costs,Facilities And Mangement Serv
http://thanet.gov.uk/supplierspend,Thanet District Council,28/04/2015,383014,1778.45,,Kent County Council (Kcs),KCC003,Community Services,Revenue,Energy Costs,Facilities And Mangement Serv
http://thanet.gov.uk/supplierspend,Thanet District Council,28/04/2015,383015,1343.7,,Kent County Council (Kcs),KCC003,Community Services,Revenue,Energy Costs,Facilities And Mangement Serv
http://thanet.gov.uk/supplierspend,Thanet District Council,28/04/2015,383016,827.06,,Kent County Council (Kcs),KCC003,Operational Services,Revenue,Energy Costs,Facilities And Mangement Serv
http://thanet.gov.uk/supplierspend,Thanet District Council,28/04/2015,383018,335.78,,Kent County Council (Kcs),KCC003,Community Services,Revenue,Energy Costs,Facilities And Mangement Serv
http://thanet.gov.uk/supplierspend,Thanet District Council,28/04/2015,383020,1870.34,,Kent County Council (Kcs),KCC003,Community Services,Revenue,Energy Costs,Facilities And Mangement Serv
http://thanet.gov.uk/supplierspend,Thanet District Council,28/04/2015,383057,1390.09,,Kent County Council (Kcs),KCC003,Operational Services,Revenue,Energy Costs,Facilities And Mangement Serv
http://thanet.gov.uk/supplierspend,Thanet District Council,28/04/2015,383059,1324.5,,Kent County Council (Kcs),KCC003,Operational Services,Revenue,Energy Costs,Facilities And Mangement Serv
http://thanet.gov.uk/supplierspend,Thanet District Council,28/04/2015,383061,1461.71,,Kent County Council (Kcs),KCC003,Operational Services,Revenue,Energy Costs,Facilities And Mangement Serv
http://thanet.gov.uk/supplierspend,Thanet District Council,28/04/2015,383063,1353.74,,Kent County Council (Kcs),KCC003,Operational Services,Revenue,Energy Costs,Facilities And Mangement Serv
http://thanet.gov.uk/supplierspend,Thanet District Council,28/04/2015,383605,3159.55,,Kent Police & Crime Commissioner,KPC002,Operational Services,Revenue,Grants & Subscriptions,Facilities And Mangement Serv
http://thanet.gov.uk/supplierspend,Thanet District Council,28/04/2015,383009,3126.58,,Level 3 Communications (Uk) Ltd,LEV005,Corporate Resources and S151,Balance Sheet,Telephone Holding Account,ICT
http://thanet.gov.uk/supplierspend,Thanet District Council,28/04/2015,383466,559.32,,Loomis Uk Ltd,LOO002,Operational Services,Revenue,Services,Financial Services
http://thanet.gov.uk/supplierspend,Thanet District Council,28/04/2015,382991,18.7,,Lyreco Uk Limited,LYR001,Community Services,Revenue,"Print, Stat And Gen Off Exps",Stationery
http://thanet.gov.uk/supplierspend,Thanet District Council,28/04/2015,382991,175.6,,Lyreco Uk Limited,LYR001,Operational Services,Revenue,"Print, Stat And Gen Off Exps",Stationery
http://thanet.gov.uk/supplierspend,Thanet District Council,28/04/2015,382991,39.98,,Lyreco Uk Limited,LYR001,East Kent Shared Services,Revenue,Communications & Computing,Stationery
http://thanet.gov.uk/supplierspend,Thanet District Council,28/04/2015,382388,290,,M D Electrics,MDE001,Community Services,Revenue,"Repairs,  Alter & Mtce - Build",Building Construction Material
http://thanet.gov.uk/supplierspend,Thanet District Council,28/04/2015,382786,2640,,M P Sutherland,SUT008,Corporate Resources and S151,Balance Sheet,Infrastructure,Consultancy
http://thanet.gov.uk/supplierspend,Thanet District Council,28/04/2015,382798,1000,,Marks Plants,MAR104,Operational Services,Revenue,Training,Horticultural
http://thanet.gov.uk/supplierspend,Thanet District Council,28/04/2015,382359,55879.67,,Mears Ltd,MEA003,Corporate Resources and S151,Balance Sheet,Repairs And Mtce Holding A/C,Construction-Repair And Maint
http://thanet.gov.uk/supplierspend,Thanet District Council,28/04/2015,382360,2293.7,,Mears Ltd,MEA003,Corporate Resources and S151,Balance Sheet,Repairs And Mtce Holding A/C,Construction-Repair And Maint
http://thanet.gov.uk/supplierspend,Thanet District Council,28/04/2015,382361,11275.13,,Mears Ltd,MEA003,Corporate Resources and S151,Balance Sheet,Repairs And Mtce Holding A/C,Construction-Repair And Maint
http://thanet.gov.uk/supplierspend,Thanet District Council,28/04/2015,382363,14915.33,,Mears Ltd,MEA003,Corporate Resources and S151,Balance Sheet,Repairs And Mtce Holding A/C,Construction-Repair And Maint
http://thanet.gov.uk/supplierspend,Thanet District Council,28/04/2015,382364,4934.63,,Mears Ltd,MEA003,Corporate Resources and S151,Balance Sheet,Repairs And Mtce Holding A/C,Construction-Repair And Maint
http://thanet.gov.uk/supplierspend,Thanet District Council,28/04/2015,382365,17603.49,,Mears Ltd,MEA003,Corporate Resources and S151,Balance Sheet,Repairs And Mtce Holding A/C,Construction-Repair And Maint
http://thanet.gov.uk/supplierspend,Thanet District Council,28/04/2015,382785,8289,,Mears Ltd,MEA003,Corporate Resources and S151,Balance Sheet,Repairs And Mtce Holding A/C,Construction-Repair And Maint
http://thanet.gov.uk/supplierspend,Thanet District Council,28/04/2015,383182,212.06,,Mears Ltd,MEA003,Operational Services,Revenue,"Repairs,  Alter & Mtce - Build",Construction-Repair And Maint
http://thanet.gov.uk/supplierspend,Thanet District Council,28/04/2015,383510,529.6,,Mears Ltd,MEA003,Community Services,Revenue,"Repairs,  Alter & Mtce - Build",Construction-Repair And Maint
http://thanet.gov.uk/supplierspend,Thanet District Council,28/04/2015,383518,504.23,,Mears Ltd,MEA003,Operational Services,Revenue,"Repairs,  Alter & Mtce - Build",Construction-Repair And Maint
http://thanet.gov.uk/supplierspend,Thanet District Council,28/04/2015,383183,1349.75,,Med Clean South Ltd,MED015,Operational Services,Revenue,"Repairs,  Alter & Mtce - Build",Cleaning And Janitorial
http://thanet.gov.uk/supplierspend,Thanet District Council,28/04/2015,383513,1248,,Michael Page Int Recruitment Ltd,PAG008,Corporate Resources and S151,Revenue,Services,Human Resources
http://thanet.gov.uk/supplierspend,Thanet District Council,28/04/2015,382237,7140,,Milmer Consulting Limited,MIL046,Operational Services,Revenue,Services,Environmental Services
http://thanet.gov.uk/supplierspend,Thanet District Council,28/04/2015,383144,283.5,,Morgan Jones Ltd,MOR001,Community Services,Revenue,Services,Human Resources
http://thanet.gov.uk/supplierspend,Thanet District Council,28/04/2015,383145,425.1,,Morgan Jones Ltd,MOR001,Chief Executive,Revenue,Agency Staff,Human Resources
http://thanet.gov.uk/supplierspend,Thanet District Council,28/04/2015,383573,63.07,,Morgan Jones Ltd,MOR001,Corporate Resources and S151,Revenue,Services,Human Resources
http://thanet.gov.uk/supplierspend,Thanet District Council,28/04/2015,383573,351.4,,Morgan Jones Ltd,MOR001,Community Services,Revenue,Services,Human Resources
http://thanet.gov.uk/supplierspend,Thanet District Council,28/04/2015,382242,500,,Mr Christopher Cant,CAN020,Community Services,Revenue,Services,Legal Services
http://thanet.gov.uk/supplierspend,Thanet District Council,28/04/2015,383604,636,,National Ass Of British Market Auths,NAT039,Community Services,Revenue,Grants & Subscriptions,Financial Services
http://thanet.gov.uk/supplierspend,Thanet District Council,28/04/2015,383142,1405.23,,Page Plan Prints,PAG009,Community Services,Revenue,"Print, Stat And Gen Off Exps",Facilities And Mangement Serv
http://thanet.gov.uk/supplierspend,Thanet District Council,28/04/2015,382858,25028,,Pinsent Masons,PIN007,Corporate Resources and S151,Revenue,Services,Legal Services
http://thanet.gov.uk/supplierspend,Thanet District Council,28/04/2015,382244,6378.23,,Portakabin Ltd,POR001,Operational Services,Revenue,"Repairs,  Alter & Mtce - Build",Facilities And Mangement Serv
http://thanet.gov.uk/supplierspend,Thanet District Council,28/04/2015,382831,1310,,Rackspace Limited,RAC006,East Kent Shared Services,Revenue,Communications & Computing,ICT
http://thanet.gov.uk/supplierspend,Thanet District Council,28/04/2015,383211,400,,Rippleffect,RIP001,Community Services,Revenue,Communications & Computing,ICT
http://thanet.gov.uk/supplierspend,Thanet District Council,28/04/2015,383476,3012.42,,Royal Mail,ROY004,Community Services,Revenue,Communications & Computing,Mail Services
http://thanet.gov.uk/supplierspend,Thanet District Council,28/04/2015,383621,1295.74,,Royal Mail,ROY004,Community Services,Revenue,Communications & Computing,Mail Services
http://thanet.gov.uk/supplierspend,Thanet District Council,28/04/2015,383622,947.46,,Royal Mail,ROY004,Community Services,Revenue,Communications & Computing,Mail Services
http://thanet.gov.uk/supplierspend,Thanet District Council,28/04/2015,383069,900,,Sellick Partnership Ltd,SEL011,Community Services,Revenue,Services,Human Resources
http://thanet.gov.uk/supplierspend,Thanet District Council,28/04/2015,383657,3113.25,,Sharpe Pritchard Llp,SHA030,Corporate Resources and S151,Revenue,Services,Legal Services
http://thanet.gov.uk/supplierspend,Thanet District Council,28/04/2015,382306,1622.09,,Southern Electric,SEL007,Community Services,Revenue,Energy Costs,Utilities
http://thanet.gov.uk/supplierspend,Thanet District Council,28/04/2015,382659,15283.58,,Southern Electric,SEL007,Community Services,Revenue,Energy Costs,Utilities
http://thanet.gov.uk/supplierspend,Thanet District Council,28/04/2015,383149,1213.76,,Southern Electric,SEL007,Community Services,Revenue,Energy Costs,Utilities
http://thanet.gov.uk/supplierspend,Thanet District Council,28/04/2015,383151,-1622.09,,Southern Electric,SEL007,Community Services,Revenue,Energy Costs,Utilities
http://thanet.gov.uk/supplierspend,Thanet District Council,28/04/2015,383152,10787.21,,Southern Electric,SEL007,Community Services,Revenue,Energy Costs,Utilities
http://thanet.gov.uk/supplierspend,Thanet District Council,28/04/2015,383153,-15283.58,,Southern Electric,SEL007,Community Services,Revenue,Energy Costs,Utilities
http://thanet.gov.uk/supplierspend,Thanet District Council,28/04/2015,383121,747.84,,Southern Water,SWA001,Operational Services,Revenue,Water Services,Utilities
http://thanet.gov.uk/supplierspend,Thanet District Council,28/04/2015,383123,450.55,,Southern Water,SWA001,Operational Services,Revenue,Water Services,Utilities
http://thanet.gov.uk/supplierspend,Thanet District Council,28/04/2015,383125,2008.52,,Southern Water,SWA001,Operational Services,Revenue,Water Services,Utilities
http://thanet.gov.uk/supplierspend,Thanet District Council,28/04/2015,383126,867.45,,Southern Water,SWA001,Operational Services,Revenue,Water Services,Utilities
http://thanet.gov.uk/supplierspend,Thanet District Council,28/04/2015,383163,278.61,,Southern Water,SWA001,Community Services,Revenue,Water Services,Utilities
http://thanet.gov.uk/supplierspend,Thanet District Council,28/04/2015,383641,474.3,,Sparshatts Of Kent Ltd,SPA008,Operational Services,Revenue,Direct Transport Costs,Vehicle Management
http://thanet.gov.uk/supplierspend,Thanet District Council,28/04/2015,383642,291.6,,Sparshatts Of Kent Ltd,SPA008,Operational Services,Revenue,Direct Transport Costs,Vehicle Management
http://thanet.gov.uk/supplierspend,Thanet District Council,28/04/2015,383644,304.2,,Sparshatts Of Kent Ltd,SPA008,Operational Services,Revenue,Direct Transport Costs,Vehicle Management
http://thanet.gov.uk/supplierspend,Thanet District Council,28/04/2015,383645,549,,Sparshatts Of Kent Ltd,SPA008,Operational Services,Revenue,Direct Transport Costs,Vehicle Management
http://thanet.gov.uk/supplierspend,Thanet District Council,28/04/2015,383647,232.75,,Sparshatts Of Kent Ltd,SPA008,Operational Services,Revenue,Direct Transport Costs,Vehicle Management
http://thanet.gov.uk/supplierspend,Thanet District Council,28/04/2015,383649,684,,Sparshatts Of Kent Ltd,SPA008,Operational Services,Revenue,Direct Transport Costs,Vehicle Management
http://thanet.gov.uk/supplierspend,Thanet District Council,28/04/2015,383027,469.8,,Speedstick Adhesive Labels Limited,SPE014,Operational Services,Revenue,"Equip, Furniture And Materials",Stationery
http://thanet.gov.uk/supplierspend,Thanet District Council,28/04/2015,383261,814,,Stacey Music Systems,STA047,Operational Services,Revenue,"Equip, Furniture And Materials",Cemetery And Crematorium
http://thanet.gov.uk/supplierspend,Thanet District Council,28/04/2015,382451,490,,Stagecoach Services Limited,STA023,Corporate Resources and S151,Balance Sheet,Staff Bus Permits Holding A/C,Public Transport
http://thanet.gov.uk/supplierspend,Thanet District Council,28/04/2015,383112,490,,Stagecoach Services Limited,STA023,Corporate Resources and S151,Balance Sheet,Staff Bus Permits Holding A/C,Public Transport
http://thanet.gov.uk/supplierspend,Thanet District Council,28/04/2015,382293,24946.74,,Swale Heating Ltd,SWA006,Corporate Resources and S151,Balance Sheet,Repairs And Mtce Holding A/C,Building Construction Material
http://thanet.gov.uk/supplierspend,Thanet District Council,28/04/2015,382296,1898.32,,Swale Heating Ltd,SWA006,Corporate Resources and S151,Balance Sheet,Repairs And Mtce Holding A/C,Building Construction Material
http://thanet.gov.uk/supplierspend,Thanet District Council,28/04/2015,383120,410.5,,Tennant Uk Cleaning Solutions Ltd,TEN006,Operational Services,Revenue,Direct Transport Costs,Vehicle Management
http://thanet.gov.uk/supplierspend,Thanet District Council,28/04/2015,383656,1800,,Thanet Nursery Project Limited,TNU001,Community Services,Revenue,Rents,Facilities And Mangement Serv
http://thanet.gov.uk/supplierspend,Thanet District Council,28/04/2015,383610,500,,Thanet Rural Regeneration Group,THA017,Community Services,Revenue,Grants & Subscriptions,Grants
http://thanet.gov.uk/supplierspend,Thanet District Council,28/04/2015,383011,1020.81,,The Glenwood Hotel,GLE007,Community Services,Revenue,Services,Housing Management
http://thanet.gov.uk/supplierspend,Thanet District Council,28/04/2015,383012,2562.47,,The Glenwood Hotel,GLE007,Community Services,Revenue,Services,Housing Management
http://thanet.gov.uk/supplierspend,Thanet District Council,28/04/2015,383136,2312.48,,The Glenwood Hotel,GLE007,Community Services,Revenue,Services,Housing Management
http://thanet.gov.uk/supplierspend,Thanet District Council,28/04/2015,383457,1937.48,,The Glenwood Hotel,GLE007,Community Services,Revenue,Services,Housing Management
http://thanet.gov.uk/supplierspend,Thanet District Council,28/04/2015,383458,2308.32,,The Glenwood Hotel,GLE007,Community Services,Revenue,Services,Housing Management
http://thanet.gov.uk/supplierspend,Thanet District Council,28/04/2015,383118,918,,Viridian Energy Solutions Limited,VIR005,Corporate Resources and S151,Balance Sheet,Repairs And Mtce Holding A/C,Facilities And Mangement Serv
http://thanet.gov.uk/supplierspend,Thanet District Council,28/04/2015,383119,432,,Viridian Energy Solutions Limited,VIR005,Corporate Resources and S151,Balance Sheet,Repairs And Mtce Holding A/C,Facilities And Mangement Serv
http://thanet.gov.uk/supplierspend,Thanet District Council,28/04/2015,383029,275,,W Brazil & Bros,BRA001,Corporate Resources and S151,Balance Sheet,Repairs And Mtce Holding A/C,Environmental Services
http://thanet.gov.uk/supplierspend,Thanet District Council,28/04/2015,383141,392,,Wasteparts Uk Ltd,WAS006,Operational Services,Revenue,Direct Transport Costs,Vehicle Management
http://thanet.gov.uk/supplierspend,Thanet District Council,30/04/2015,382424,16216.97,,Bidwells Llp,BID001,Corporate Resources and S151,Balance Sheet,Other Land And Buildings-Hra,Consultancy
http://thanet.gov.uk/supplierspend,Thanet District Council,30/04/2015,383655,3729.73,,Gva Grimley Limited,GVA001,Corporate Resources and S151,Balance Sheet,Other Land And Buildings-Hra,Consultancy
http://thanet.gov.uk/supplierspend,Thanet District Council,30/04/2015,383906,1528.2,,John Gale,GAL001,Corporate Resources and S151,Balance Sheet,Capital Exp-Non Council Assets,Grants
http://thanet.gov.uk/supplierspend,Thanet District Council,30/04/2015,383907,496,,John Gale,GAL001,Corporate Resources and S151,Balance Sheet,Capital Exp-Non Council Assets,Grants
http://thanet.gov.uk/supplierspend,Thanet District Council,30/04/2015,382806,10450,,Local Government Association,LGA001,Corporate Resources and S151,Revenue,Grants & Subscriptions,Various Categories
http://thanet.gov.uk/supplierspend,Thanet District Council,30/04/2015,383962,326.25,,Michelle Williams,WIL064,Community Services,Revenue,Services,Arts And Leisure Services
http://thanet.gov.uk/supplierspend,Thanet District Council,30/04/2015,383903,42857.14,,Public Works Loan Board,PWL001,Corporate Resources and S151,Balance Sheet,Borrowing Repayable>1 Yr,Investments And Loans
http://thanet.gov.uk/supplierspend,Thanet District Council,30/04/2015,383903,27720,,Public Works Loan Board,PWL001,Corporate Resources and S151,Balance Sheet,Debit Interest And Expenses,Investments And Loans
http://thanet.gov.uk/supplierspend,Thanet District Council,30/04/2015,383908,500,,Shout Spark & Go Limited,SHO014,Community Services,Revenue,Miscellaneous Expenses,Facilities And Mangement Serv
